Workbook

Sheet Invulformulier
A1: Toernooi 5 ploegen / 5 poules + Finale ronde beste nummers 1 | AY1: =COUNTA(U13:W22) -> 30 | AZ1: =COUNTA(AT13:AV22) -> 30 | BA1: =COUNTA(U25:W34) -> 30 | BB1: =COUNTA(AT25:AV34) -> 30 | BC1: =COUNTA(U38:W47) -> 30 | CL1: =VALUE(A6) -> 3 | CM1: =B6 -> PA TEAM 1 | CN1: =VALUE(O6) -> 3 | CO1: =P6 -> PB TEAM 1 | CP1: =VALUE(AD6) -> 2 | CQ1: =AE6 -> PC TEAM 1 | CR1: =VALUE(AR6) -> 4 | CS1: =AS6 -> PD TEAM 1
CL2: =VALUE(A7) -> 5 | CM2: =B7 -> PA TEAM 2 | CN2: =VALUE(O7) -> 1 | CO2: =P7 -> PB TEAM 2 | CP2: =VALUE(AD7) -> 4 | CQ2: =AE7 -> PC TEAM 2 | CR2: =VALUE(AR7) -> 5 | CS2: =AS7 -> PD TEAM 2
A3: Stand | K3: Gewonnen | L3: Gelijk | M3: Verloren | N3: Saldo | O3: Stand | Z3: Gewonnen | AA3: Gelijk | AB3: Verloren | AC3: Saldo | AD3: Stand | AN3: Gewonnen | AO3: Gelijk | AP3: Verloren | AQ3: Saldo | AR3: Stand | BB3: Gewonnen | BC3: Gelijk | BD3: Verloren | BE3: Saldo | BF3: Stand | BP3: Gewonnen | BQ3: Gelijk | BR3: Verloren | BS3: Saldo | BU3: Stand | CE3: Gewonnen | CF3: Gelijk | CG3: Verloren | CH3: Saldo | CL3: =VALUE(A8) -> 2 | CM3: =B8 -> PA TEAM 3 | CN3: =VALUE(O8) -> 4 | CO3: =P8 -> PB TEAM 3 | CP3: =VALUE(AD8) -> 3 | CQ3: =AE8 -> PC TEAM 3 | CR3: =VALUE(AR8) -> 1 | CS3: =AS8 -> PD TEAM 3
BV4: Automatisch berekend! | CL4: =VALUE(A9) -> 1 | CM4: =B9 -> PA TEAM 4 | CN4: =VALUE(O9) -> 2 | CO4: =P9 -> PB TEAM 4 | CP4: =VALUE(AD9) -> 5 | CQ4: =AE9 -> PC TEAM 4 | CR4: =VALUE(AR9) -> 3 | CS4: =AS9 -> PD TEAM 4
B5: Poule A | H5: V | I5: T | J5: P | P5: Poule B | W5: V | X5: T | Y5: P | AE5: Poule C | AK5: V | AL5: T | AM5: P | AS5: Poule D | AY5: V | AZ5: T | BA5: P | BG5: Poule E | BM5: V | BN5: T | BO5: P | BV5: Finalepoule | CB5: V | CC5: T | CD5: P | CL5: =VALUE(A10) -> 4 | CM5: =B10 -> PA TEAM 5 | CN5: =VALUE(O10) -> 5 | CO5: =P10 -> PB TEAM 5 | CP5: =VALUE(AD10) -> 1 | CQ5: =AE10 -> PC TEAM 5 | CR5: =VALUE(AR10) -> 2 | CS5: =AS10 -> PD TEAM 5
A6: =RANK(J6,$J$6:$J$10,0) -> 3 | B6: PA TEAM 1 | H6: =SUMIF($G$13:$L$22,B6,$U$13:$U$22)+SUMIF($N$13:$S$22,B6,$W$13:$W$22) -> 11 | I6: =SUMIF($G$13:$L$22,B6,$W$13:$W$22)+SUMIF($N$13:$S$22,B6,$U$13:$U$22) -> 12 | J6: =(K6*3)+L6+(H6*0.001)-(I6*0.001)+(H6*0.00001) -> 4.99911 | K6: =SUMPRODUCT(($G$13:$L$22=B6)*($Y$13:$Y$22=3))+SUMPRODUCT(($N$13:$S$22=B6)*($AA$13:$AA$22=3)) -> 1 | L6: =SUMPRODUCT(($G$13:$L$22=B6)*($Y$13:$Y$22=1))+SUMPRODUCT(($N$13:$S$22=B6)*($AA$13:$AA$22=1)) -> 2 | M6: =SUMPRODUCT(($G$13:$L$22=B6)*($Y$13:$Y$22=0))+SUMPRODUCT(($N$13:$S$22=B6)*($AA$13:$AA$22=0)) -> 1 | N6: =H6-I6 -> -1 | O6: =RANK(Y6,$Y$6:$Y$10,0) -> 3 | P6: PB TEAM 1 | W6: =SUMIF($AF$13:$AK$22,P6,$AT$13:$AT$22)+SUMIF($AM$13:$AR$22,P6,$AV$13:$AV$22) -> 15 | X6: =SUMIF($AF$13:$AK$22,P6,$AV$13:$AV$22)+SUMIF($AM$13:$AR$22,P6,$AT$13:$AT$22) -> 20 | Y6: =(Z6*3)+AA6+(W6*0.001)-(X6*0.001)+(W6*0.00001) -> 5.99515 | Z6: =SUMPRODUCT(($AF$13:$AK$22=P6)*($AX$13:$AX$22=3))+SUMPRODUCT(($AM$13:$AR$22=P6)*($AZ$13:$AZ$22=3)) -> 2 | AA6: =SUMPRODUCT(($AF$13:$AK$22=P6)*($AX$13:$AX$22=1))+SUMPRODUCT(($AM$13:$AR$22=P6)*($AZ$13:$AZ$22=1)) -> 0 | AB6: =SUMPRODUCT(($AF$13:$AK$22=P6)*($AX$13:$AX$22=0))+SUMPRODUCT(($AM$13:$AR$22=P6)*($AZ$13:$AZ$22=0)) -> 2 | AC6: =W6-X6 -> -5 | AD6: =RANK(AM6,$AM$6:$AM$10,0) -> 2 | AE6: PC TEAM 1 | AK6: =SUMIF($G$25:$L$34,AE6,$U$25:$U$34)+SUMIF($N$25:$S$34,AE6,$W$25:$W$34) -> 24 | AL6: =SUMIF($G$25:$L$34,AE6,$W$25:$W$34)+SUMIF($N$25:$S$34,AE6,$U$25:$U$34) -> 19 | AM6: =(AN6*3)+AO6+(AK6*0.001)-(AL6*0.001)+(AK6*0.00001) -> 6.00524 | AN6: =SUMPRODUCT(($G$25:$L$34=AE6)*($Y$25:$Y$34=3))+SUMPRODUCT(($N$25:$S$34=AE6)*($AA$25:$AA$34=3)) -> 2 | AO6: =SUMPRODUCT(($G$25:$L$34=AE6)*($Y$25:$Y$34=1))+SUMPRODUCT(($N$25:$S$34=AE6)*($AA$25:$AA$34=1)) -> 0 | AP6: =SUMPRODUCT(($G$25:$L$34=AE6)*($Y$25:$Y$34=0))+SUMPRODUCT(($N$25:$S$34=AE6)*($AA$25:$AA$34=0)) -> 2 | AQ6: =AK6-AL6 -> 5 | AR6: =RANK(BA6,$BA$6:$BA$10,0) -> 4 | AS6: PD TEAM 1 | AY6: =SUMIF($AF$25:$AK$34,AS6,$AT$25:$AT$34)+SUMIF($AM$25:$AR$34,AS6,$AV$25:$AV$34) -> 7 | AZ6: =SUMIF($AF$25:$AK$34,AS6,$AV$25:$AV$34)+SUMIF($AM$25:$AR$34,AS6,$AT$25:$AT$34) -> 10 | BA6: =(BB6*3)+BC6+(AY6*0.001)-(AZ6*0.001)+(AY6*0.00001) -> 2.99707 | BB6: =SUMPRODUCT(($AF$25:$AK$34=AS6)*($AX$25:$AX$34=3))+SUMPRODUCT(($AM$25:$AR$34=AS6)*($AZ$25:$AZ$34=3)) -> 0 | BC6: =SUMPRODUCT(($AF$25:$AK$34=AS6)*($AX$25:$AX$34=1))+SUMPRODUCT(($AM$25:$AR$34=AS6)*($AZ$25:$AZ$34=1)) -> 3 | BD6: =SUMPRODUCT(($AF$25:$AK$34=AS6)*($AX$25:$AX$34=0))+SUMPRODUCT(($AM$25:$AR$34=AS6)*($AZ$25:$AZ$34=0)) -> 1 | BE6: =AY6-AZ6 -> -3 | BF6: =RANK(BO6,$BO$6:$BO$10,0) -> 5 | BG6: PE TEAM 1 | BM6: =SUMIF($G$38:$L$47,BG6,$U$38:$U$47)+SUMIF($N$38:$S$47,BG6,$W$38:$W$47) -> 12 | BN6: =SUMIF($G$38:$L$47,BG6,$W$38:$W$47)+SUMIF($N$38:$S$47,BG6,$U$38:$U$47) -> 15 | BO6: =(BP6*3)+BQ6+(BM6*0.001)-(BN6*0.001)+(BM6*0.00001) -> 2.99712 | BP6: =SUMPRODUCT(($G$38:$L$47=BG6)*($Y$38:$Y$47=3))+SUMPRODUCT(($N$38:$S$47=BG6)*($AA$38:$AA$47=3)) -> 1 | BQ6: =SUMPRODUCT(($G$38:$L$47=BG6)*($Y$38:$Y$47=1))+SUMPRODUCT(($N$38:$S$47=BG6)*($AA$38:$AA$47=1)) -> 0 | BR6: =SUMPRODUCT(($G$38:$L$47=BG6)*($Y$38:$Y$47=0))+SUMPRODUCT(($N$38:$S$47=BG6)*($AA$38:$AA$47=0)) -> 3 | BS6: =BM6-BN6 -> -3 | BU6: =RANK(CD6,$CD$6:$CD$10,0) -> 4 | BV6: =VLOOKUP(1,Invulformulier!$A$6:$G$10,2,FALSE) -> PA TEAM 4 | CB6: =SUMIF($AF$38:$AK$47,BV6,$AT$38:$AT$47)+SUMIF($AM$38:$AR$47,BV6,$AV$38:$AV$47) -> 8 | CC6: =SUMIF($AF$38:$AK$47,BV6,$AV$38:$AV$47)+SUMIF($AM$38:$AR$47,BV6,$AT$38:$AT$47) -> 10 | CD6: =(CE6*3)+CF6+(CB6*0.001)-(CC6*0.001)+(CB6*0.00001) -> 3.99808 | CE6: =SUMPRODUCT(($AF$38:$AK$47=BV6)*($AX$38:$AX$47=3))+SUMPRODUCT(($AM$38:$AR$47=BV6)*($AZ$38:$AZ$47=3)) -> 1 | CF6: =SUMPRODUCT(($AF$38:$AK$47=BV6)*($AX$38:$AX$47=1))+SUMPRODUCT(($AM$38:$AR$47=BV6)*($AZ$38:$AZ$47=1)) -> 1 | CG6: =SUMPRODUCT(($AF$38:$AK$47=BV6)*($AX$38:$AX$47=0))+SUMPRODUCT(($AM$38:$AR$47=BV6)*($AZ$38:$AZ$47=0)) -> 2 | CH6: =CB6-CC6 -> -2
A7: =RANK(J7,$J$6:$J$10,0) -> 5 | B7: PA TEAM 2 | H7: =SUMIF($G$13:$L$22,B7,$U$13:$U$22)+SUMIF($N$13:$S$22,B7,$W$13:$W$22) -> 10 | I7: =SUMIF($G$13:$L$22,B7,$W$13:$W$22)+SUMIF($N$13:$S$22,B7,$U$13:$U$22) -> 10 | J7: =(K7*3)+L7+(H7*0.001)-(I7*0.001)+(H7*0.00001) -> 3.0001 | K7: =SUMPRODUCT(($G$13:$L$22=B7)*($Y$13:$Y$22=3))+SUMPRODUCT(($N$13:$S$22=B7)*($AA$13:$AA$22=3)) -> 1 | L7: =SUMPRODUCT(($G$13:$L$22=B7)*($Y$13:$Y$22=1))+SUMPRODUCT(($N$13:$S$22=B7)*($AA$13:$AA$22=1)) -> 0 | M7: =SUMPRODUCT(($G$13:$L$22=B7)*($Y$13:$Y$22=0))+SUMPRODUCT(($N$13:$S$22=B7)*($AA$13:$AA$22=0)) -> 3 | N7: =H7-I7 -> 0 | O7: =RANK(Y7,$Y$6:$Y$10,0) -> 1 | P7: PB TEAM 2 | W7: =SUMIF($AF$13:$AK$22,P7,$AT$13:$AT$22)+SUMIF($AM$13:$AR$22,P7,$AV$13:$AV$22) -> 16 | X7: =SUMIF($AF$13:$AK$22,P7,$AV$13:$AV$22)+SUMIF($AM$13:$AR$22,P7,$AT$13:$AT$22) -> 7 | Y7: =(Z7*3)+AA7+(W7*0.001)-(X7*0.001)+(W7*0.00001) -> 7.00916 | Z7: =SUMPRODUCT(($AF$13:$AK$22=P7)*($AX$13:$AX$22=3))+SUMPRODUCT(($AM$13:$AR$22=P7)*($AZ$13:$AZ$22=3)) -> 2 | AA7: =SUMPRODUCT(($AF$13:$AK$22=P7)*($AX$13:$AX$22=1))+SUMPRODUCT(($AM$13:$AR$22=P7)*($AZ$13:$AZ$22=1)) -> 1 | AB7: =SUMPRODUCT(($AF$13:$AK$22=P7)*($AX$13:$AX$22=0))+SUMPRODUCT(($AM$13:$AR$22=P7)*($AZ$13:$AZ$22=0)) -> 1 | AC7: =W7-X7 -> 9 | AD7: =RANK(AM7,$AM$6:$AM$10,0) -> 4 | AE7: PC TEAM 2 | AK7: =SUMIF($G$25:$L$34,AE7,$U$25:$U$34)+SUMIF($N$25:$S$34,AE7,$W$25:$W$34) -> 9 | AL7: =SUMIF($G$25:$L$34,AE7,$W$25:$W$34)+SUMIF($N$25:$S$34,AE7,$U$25:$U$34) -> 16 | AM7: =(AN7*3)+AO7+(AK7*0.001)-(AL7*0.001)+(AK7*0.00001) -> 5.99309 | AN7: =SUMPRODUCT(($G$25:$L$34=AE7)*($Y$25:$Y$34=3))+SUMPRODUCT(($N$25:$S$34=AE7)*($AA$25:$AA$34=3)) -> 2 | AO7: =SUMPRODUCT(($G$25:$L$34=AE7)*($Y$25:$Y$34=1))+SUMPRODUCT(($N$25:$S$34=AE7)*($AA$25:$AA$34=1)) -> 0 | AP7: =SUMPRODUCT(($G$25:$L$34=AE7)*($Y$25:$Y$34=0))+SUMPRODUCT(($N$25:$S$34=AE7)*($AA$25:$AA$34=0)) -> 2 | AQ7: =AK7-AL7 -> -7 | AR7: =RANK(BA7,$BA$6:$BA$10,0) -> 5 | AS7: PD TEAM 2 | AY7: =SUMIF($AF$25:$AK$34,AS7,$AT$25:$AT$34)+SUMIF($AM$25:$AR$34,AS7,$AV$25:$AV$34) -> 8 | AZ7: =SUMIF($AF$25:$AK$34,AS7,$AV$25:$AV$34)+SUMIF($AM$25:$AR$34,AS7,$AT$25:$AT$34) -> 13 | BA7: =(BB7*3)+BC7+(AY7*0.001)-(AZ7*0.001)+(AY7*0.00001) -> 0.99508 | BB7: =SUMPRODUCT(($AF$25:$AK$34=AS7)*($AX$25:$AX$34=3))+SUMPRODUCT(($AM$25:$AR$34=AS7)*($AZ$25:$AZ$34=3)) -> 0 | BC7: =SUMPRODUCT(($AF$25:$AK$34=AS7)*($AX$25:$AX$34=1))+SUMPRODUCT(($AM$25:$AR$34=AS7)*($AZ$25:$AZ$34=1)) -> 1 | BD7: =SUMPRODUCT(($AF$25:$AK$34=AS7)*($AX$25:$AX$34=0))+SUMPRODUCT(($AM$25:$AR$34=AS7)*($AZ$25:$AZ$34=0)) -> 3 | BE7: =AY7-AZ7 -> -5 | BF7: =RANK(BO7,$BO$6:$BO$10,0) -> 4 | BG7: PE TEAM 2 | BM7: =SUMIF($G$38:$L$47,BG7,$U$38:$U$47)+SUMIF($N$38:$S$47,BG7,$W$38:$W$47) -> 7 | BN7: =SUMIF($G$38:$L$47,BG7,$W$38:$W$47)+SUMIF($N$38:$S$47,BG7,$U$38:$U$47) -> 8 | BO7: =(BP7*3)+BQ7+(BM7*0.001)-(BN7*0.001)+(BM7*0.00001) -> 4.99907 | BP7: =SUMPRODUCT(($G$38:$L$47=BG7)*($Y$38:$Y$47=3))+SUMPRODUCT(($N$38:$S$47=BG7)*($AA$38:$AA$47=3)) -> 1 | BQ7: =SUMPRODUCT(($G$38:$L$47=BG7)*($Y$38:$Y$47=1))+SUMPRODUCT(($N$38:$S$47=BG7)*($AA$38:$AA$47=1)) -> 2 | BR7: =SUMPRODUCT(($G$38:$L$47=BG7)*($Y$38:$Y$47=0))+SUMPRODUCT(($N$38:$S$47=BG7)*($AA$38:$AA$47=0)) -> 1 | BS7: =BM7-BN7 -> -1 | BU7: =RANK(CD7,$CD$6:$CD$10,0) -> 3 | BV7: =VLOOKUP(1,Invulformulier!$O$6:$V$10,2,FALSE) -> PB TEAM 2 | CB7: =SUMIF($AF$38:$AK$47,BV7,$AT$38:$AT$47)+SUMIF($AM$38:$AR$47,BV7,$AV$38:$AV$47) -> 13 | CC7: =SUMIF($AF$38:$AK$47,BV7,$AV$38:$AV$47)+SUMIF($AM$38:$AR$47,BV7,$AT$38:$AT$47) -> 10 | CD7: =(CE7*3)+CF7+(CB7*0.001)-(CC7*0.001)+(CB7*0.00001) -> 7.00313 | CE7: =SUMPRODUCT(($AF$38:$AK$47=BV7)*($AX$38:$AX$47=3))+SUMPRODUCT(($AM$38:$AR$47=BV7)*($AZ$38:$AZ$47=3)) -> 2 | CF7: =SUMPRODUCT(($AF$38:$AK$47=BV7)*($AX$38:$AX$47=1))+SUMPRODUCT(($AM$38:$AR$47=BV7)*($AZ$38:$AZ$47=1)) -> 1 | CG7: =SUMPRODUCT(($AF$38:$AK$47=BV7)*($AX$38:$AX$47=0))+SUMPRODUCT(($AM$38:$AR$47=BV7)*($AZ$38:$AZ$47=0)) -> 1 | CH7: =CB7-CC7 -> 3
A8: =RANK(J8,$J$6:$J$10,0) -> 2 | B8: PA TEAM 3 | H8: =SUMIF($G$13:$L$22,B8,$U$13:$U$22)+SUMIF($N$13:$S$22,B8,$W$13:$W$22) -> 11 | I8: =SUMIF($G$13:$L$22,B8,$W$13:$W$22)+SUMIF($N$13:$S$22,B8,$U$13:$U$22) -> 11 | J8: 7.00011 | K8: =SUMPRODUCT(($G$13:$L$22=B8)*($Y$13:$Y$22=3))+SUMPRODUCT(($N$13:$S$22=B8)*($AA$13:$AA$22=3)) -> 2 | L8: =SUMPRODUCT(($G$13:$L$22=B8)*($Y$13:$Y$22=1))+SUMPRODUCT(($N$13:$S$22=B8)*($AA$13:$AA$22=1)) -> 1 | M8: =SUMPRODUCT(($G$13:$L$22=B8)*($Y$13:$Y$22=0))+SUMPRODUCT(($N$13:$S$22=B8)*($AA$13:$AA$22=0)) -> 1 | N8: =H8-I8 -> 0 | O8: =RANK(Y8,$Y$6:$Y$10,0) -> 4 | P8: PB TEAM 3 | W8: =SUMIF($AF$13:$AK$22,P8,$AT$13:$AT$22)+SUMIF($AM$13:$AR$22,P8,$AV$13:$AV$22) -> 14 | X8: =SUMIF($AF$13:$AK$22,P8,$AV$13:$AV$22)+SUMIF($AM$13:$AR$22,P8,$AT$13:$AT$22) -> 13 | Y8: 5.00114 | Z8: =SUMPRODUCT(($AF$13:$AK$22=P8)*($AX$13:$AX$22=3))+SUMPRODUCT(($AM$13:$AR$22=P8)*($AZ$13:$AZ$22=3)) -> 1 | AA8: =SUMPRODUCT(($AF$13:$AK$22=P8)*($AX$13:$AX$22=1))+SUMPRODUCT(($AM$13:$AR$22=P8)*($AZ$13:$AZ$22=1)) -> 2 | AB8: =SUMPRODUCT(($AF$13:$AK$22=P8)*($AX$13:$AX$22=0))+SUMPRODUCT(($AM$13:$AR$22=P8)*($AZ$13:$AZ$22=0)) -> 1 | AC8: =W8-X8 -> 1 | AD8: =RANK(AM8,$AM$6:$AM$10,0) -> 3 | AE8: PC TEAM 3 | AK8: =SUMIF($G$25:$L$34,AE8,$U$25:$U$34)+SUMIF($N$25:$S$34,AE8,$W$25:$W$34) -> 17 | AL8: =SUMIF($G$25:$L$34,AE8,$W$25:$W$34)+SUMIF($N$25:$S$34,AE8,$U$25:$U$34) -> 17 | AM8: 6.00017 | AN8: =SUMPRODUCT(($G$25:$L$34=AE8)*($Y$25:$Y$34=3))+SUMPRODUCT(($N$25:$S$34=AE8)*($AA$25:$AA$34=3)) -> 2 | AO8: =SUMPRODUCT(($G$25:$L$34=AE8)*($Y$25:$Y$34=1))+SUMPRODUCT(($N$25:$S$34=AE8)*($AA$25:$AA$34=1)) -> 0 | AP8: =SUMPRODUCT(($G$25:$L$34=AE8)*($Y$25:$Y$34=0))+SUMPRODUCT(($N$25:$S$34=AE8)*($AA$25:$AA$34=0)) -> 2 | AQ8: =AK8-AL8 -> 0 | AR8: =RANK(BA8,$BA$6:$BA$10,0) -> 1 | AS8: PD TEAM 3 | AY8: =SUMIF($AF$25:$AK$34,AS8,$AT$25:$AT$34)+SUMIF($AM$25:$AR$34,AS8,$AV$25:$AV$34) -> 11 | AZ8: =SUMIF($AF$25:$AK$34,AS8,$AV$25:$AV$34)+SUMIF($AM$25:$AR$34,AS8,$AT$25:$AT$34) -> 6 | BA8: 10.00511 | BB8: =SUMPRODUCT(($AF$25:$AK$34=AS8)*($AX$25:$AX$34=3))+SUMPRODUCT(($AM$25:$AR$34=AS8)*($AZ$25:$AZ$34=3)) -> 3 | BC8: =SUMPRODUCT(($AF$25:$AK$34=AS8)*($AX$25:$AX$34=1))+SUMPRODUCT(($AM$25:$AR$34=AS8)*($AZ$25:$AZ$34=1)) -> 1 | BD8: =SUMPRODUCT(($AF$25:$AK$34=AS8)*($AX$25:$AX$34=0))+SUMPRODUCT(($AM$25:$AR$34=AS8)*($AZ$25:$AZ$34=0)) -> 0 | BE8: =AY8-AZ8 -> 5 | BF8: 2 | BG8: PE TEAM 3 | BM8: =SUMIF($G$38:$L$47,BG8,$U$38:$U$47)+SUMIF($N$38:$S$47,BG8,$W$38:$W$47) -> 9 | BN8: =SUMIF($G$38:$L$47,BG8,$W$38:$W$47)+SUMIF($N$38:$S$47,BG8,$U$38:$U$47) -> 9 | BO8: 6.00009 | BP8: =SUMPRODUCT(($G$38:$L$47=BG8)*($Y$38:$Y$47=3))+SUMPRODUCT(($N$38:$S$47=BG8)*($AA$38:$AA$47=3)) -> 2 | BQ8: =SUMPRODUCT(($G$38:$L$47=BG8)*($Y$38:$Y$47=1))+SUMPRODUCT(($N$38:$S$47=BG8)*($AA$38:$AA$47=1)) -> 0 | BR8: =SUMPRODUCT(($G$38:$L$47=BG8)*($Y$38:$Y$47=0))+SUMPRODUCT(($N$38:$S$47=BG8)*($AA$38:$AA$47=0)) -> 2 | BS8: =BM8-BN8 -> 0 | BU8: 1 | BV8: =VLOOKUP(1,Invulformulier!$AD$6:$AJ$10,2,FALSE) -> PC TEAM 5 | CB8: 10 | CC8: 8 | CD8: 9.0021 | CE8: 3 | CF8: 0 | CG8: 1 | CH8: =CB8-CC8 -> 2
A9: =RANK(J9,$J$6:$J$10,0) -> 1 | B9: PA TEAM 4 | H9: =SUMIF($G$13:$L$22,B9,$U$13:$U$22)+SUMIF($N$13:$S$22,B9,$W$13:$W$22) -> 10 | I9: =SUMIF($G$13:$L$22,B9,$W$13:$W$22)+SUMIF($N$13:$S$22,B9,$U$13:$U$22) -> 3 | J9: 8.0071 | K9: =SUMPRODUCT(($G$13:$L$22=B9)*($Y$13:$Y$22=3))+SUMPRODUCT(($N$13:$S$22=B9)*($AA$13:$AA$22=3)) -> 2 | L9: =SUMPRODUCT(($G$13:$L$22=B9)*($Y$13:$Y$22=1))+SUMPRODUCT(($N$13:$S$22=B9)*($AA$13:$AA$22=1)) -> 2 | M9: =SUMPRODUCT(($G$13:$L$22=B9)*($Y$13:$Y$22=0))+SUMPRODUCT(($N$13:$S$22=B9)*($AA$13:$AA$22=0)) -> 0 | N9: =H9-I9 -> 7 | O9: =RANK(Y9,$Y$6:$Y$10,0) -> 2 | P9: PB TEAM 4 | W9: =SUMIF($AF$13:$AK$22,P9,$AT$13:$AT$22)+SUMIF($AM$13:$AR$22,P9,$AV$13:$AV$22) -> 12 | X9: =SUMIF($AF$13:$AK$22,P9,$AV$13:$AV$22)+SUMIF($AM$13:$AR$22,P9,$AT$13:$AT$22) -> 12 | Y9: 6.00012 | Z9: =SUMPRODUCT(($AF$13:$AK$22=P9)*($AX$13:$AX$22=3))+SUMPRODUCT(($AM$13:$AR$22=P9)*($AZ$13:$AZ$22=3)) -> 2 | AA9: =SUMPRODUCT(($AF$13:$AK$22=P9)*($AX$13:$AX$22=1))+SUMPRODUCT(($AM$13:$AR$22=P9)*($AZ$13:$AZ$22=1)) -> 0 | AB9: =SUMPRODUCT(($AF$13:$AK$22=P9)*($AX$13:$AX$22=0))+SUMPRODUCT(($AM$13:$AR$22=P9)*($AZ$13:$AZ$22=0)) -> 2 | AC9: =W9-X9 -> 0 | AD9: =RANK(AM9,$AM$6:$AM$10,0) -> 5 | AE9: PC TEAM 4 | AK9: =SUMIF($G$25:$L$34,AE9,$U$25:$U$34)+SUMIF($N$25:$S$34,AE9,$W$25:$W$34) -> 7 | AL9: =SUMIF($G$25:$L$34,AE9,$W$25:$W$34)+SUMIF($N$25:$S$34,AE9,$U$25:$U$34) -> 19 | AM9: -0.01193 | AN9: =SUMPRODUCT(($G$25:$L$34=AE9)*($Y$25:$Y$34=3))+SUMPRODUCT(($N$25:$S$34=AE9)*($AA$25:$AA$34=3)) -> 0 | AO9: =SUMPRODUCT(($G$25:$L$34=AE9)*($Y$25:$Y$34=1))+SUMPRODUCT(($N$25:$S$34=AE9)*($AA$25:$AA$34=1)) -> 0 | AP9: =SUMPRODUCT(($G$25:$L$34=AE9)*($Y$25:$Y$34=0))+SUMPRODUCT(($N$25:$S$34=AE9)*($AA$25:$AA$34=0)) -> 4 | AQ9: =AK9-AL9 -> -12 | AR9: =RANK(BA9,$BA$6:$BA$10,0) -> 3 | AS9: PD TEAM 4 | AY9: =SUMIF($AF$25:$AK$34,AS9,$AT$25:$AT$34)+SUMIF($AM$25:$AR$34,AS9,$AV$25:$AV$34) -> 10 | AZ9: =SUMIF($AF$25:$AK$34,AS9,$AV$25:$AV$34)+SUMIF($AM$25:$AR$34,AS9,$AT$25:$AT$34) -> 9 | BA9: 5.0011 | BB9: =SUMPRODUCT(($AF$25:$AK$34=AS9)*($AX$25:$AX$34=3))+SUMPRODUCT(($AM$25:$AR$34=AS9)*($AZ$25:$AZ$34=3)) -> 1 | BC9: =SUMPRODUCT(($AF$25:$AK$34=AS9)*($AX$25:$AX$34=1))+SUMPRODUCT(($AM$25:$AR$34=AS9)*($AZ$25:$AZ$34=1)) -> 2 | BD9: =SUMPRODUCT(($AF$25:$AK$34=AS9)*($AX$25:$AX$34=0))+SUMPRODUCT(($AM$25:$AR$34=AS9)*($AZ$25:$AZ$34=0)) -> 1 | BE9: =AY9-AZ9 -> 1 | BF9: 1 | BG9: PE TEAM 4 | BM9: =SUMIF($G$38:$L$47,BG9,$U$38:$U$47)+SUMIF($N$38:$S$47,BG9,$W$38:$W$47) -> 11 | BN9: =SUMIF($G$38:$L$47,BG9,$W$38:$W$47)+SUMIF($N$38:$S$47,BG9,$U$38:$U$47) -> 7 | BO9: 8.00411 | BP9: =SUMPRODUCT(($G$38:$L$47=BG9)*($Y$38:$Y$47=3))+SUMPRODUCT(($N$38:$S$47=BG9)*($AA$38:$AA$47=3)) -> 2 | BQ9: =SUMPRODUCT(($G$38:$L$47=BG9)*($Y$38:$Y$47=1))+SUMPRODUCT(($N$38:$S$47=BG9)*($AA$38:$AA$47=1)) -> 2 | BR9: =SUMPRODUCT(($G$38:$L$47=BG9)*($Y$38:$Y$47=0))+SUMPRODUCT(($N$38:$S$47=BG9)*($AA$38:$AA$47=0)) -> 0 | BS9: =BM9-BN9 -> 4 | BU9: 5 | BV9: =VLOOKUP(1,Invulformulier!$AR$6:$AX$10,2,FALSE) -> PD TEAM 3 | CB9: 3 | CC9: 11 | CD9: 0.99203 | CE9: 0 | CF9: 1 | CG9: 3 | CH9: -8
A10: =RANK(J10,$J$6:$J$10,0) -> 4 | B10: PA TEAM 5 | H10: =SUMIF($G$13:$L$22,B10,$U$13:$U$22)+SUMIF($N$13:$S$22,B10,$W$13:$W$22) -> 11 | I10: =SUMIF($G$13:$L$22,B10,$W$13:$W$22)+SUMIF($N$13:$S$22,B10,$U$13:$U$22) -> 17 | J10: 3.99411 | K10: =SUMPRODUCT(($G$13:$L$22=B10)*($Y$13:$Y$22=3))+SUMPRODUCT(($N$13:$S$22=B10)*($AA$13:$AA$22=3)) -> 1 | L10: =SUMPRODUCT(($G$13:$L$22=B10)*($Y$13:$Y$22=1))+SUMPRODUCT(($N$13:$S$22=B10)*($AA$13:$AA$22=1)) -> 1 | M10: =SUMPRODUCT(($G$13:$L$22=B10)*($Y$13:$Y$22=0))+SUMPRODUCT(($N$13:$S$22=B10)*($AA$13:$AA$22=0)) -> 2 | N10: =H10-I10 -> -6 | O10: =RANK(Y10,$Y$6:$Y$10,0) -> 5 | P10: PB TEAM 5 | W10: =SUMIF($AF$13:$AK$22,P10,$AT$13:$AT$22)+SUMIF($AM$13:$AR$22,P10,$AV$13:$AV$22) -> 9 | X10: =SUMIF($AF$13:$AK$22,P10,$AV$13:$AV$22)+SUMIF($AM$13:$AR$22,P10,$AT$13:$AT$22) -> 14 | Y10: 3.99509 | Z10: =SUMPRODUCT(($AF$13:$AK$22=P10)*($AX$13:$AX$22=3))+SUMPRODUCT(($AM$13:$AR$22=P10)*($AZ$13:$AZ$22=3)) -> 1 | AA10: =SUMPRODUCT(($AF$13:$AK$22=P10)*($AX$13:$AX$22=1))+SUMPRODUCT(($AM$13:$AR$22=P10)*($AZ$13:$AZ$22=1)) -> 1 | AB10: =SUMPRODUCT(($AF$13:$AK$22=P10)*($AX$13:$AX$22=0))+SUMPRODUCT(($AM$13:$AR$22=P10)*($AZ$13:$AZ$22=0)) -> 2 | AC10: =W10-X10 -> -5 | AD10: =RANK(AM10,$AM$6:$AM$10,0) -> 1 | AE10: PC TEAM 5 | AK10: =SUMIF($G$25:$L$34,AE10,$U$25:$U$34)+SUMIF($N$25:$S$34,AE10,$W$25:$W$34) -> 20 | AL10: =SUMIF($G$25:$L$34,AE10,$W$25:$W$34)+SUMIF($N$25:$S$34,AE10,$U$25:$U$34) -> 6 | AM10: 12.0142 | AN10: =SUMPRODUCT(($G$25:$L$34=AE10)*($Y$25:$Y$34=3))+SUMPRODUCT(($N$25:$S$34=AE10)*($AA$25:$AA$34=3)) -> 4 | AO10: =SUMPRODUCT(($G$25:$L$34=AE10)*($Y$25:$Y$34=1))+SUMPRODUCT(($N$25:$S$34=AE10)*($AA$25:$AA$34=1)) -> 0 | AP10: =SUMPRODUCT(($G$25:$L$34=AE10)*($Y$25:$Y$34=0))+SUMPRODUCT(($N$25:$S$34=AE10)*($AA$25:$AA$34=0)) -> 0 | AQ10: =AK10-AL10 -> 14 | AR10: =RANK(BA10,$BA$6:$BA$10,0) -> 2 | AS10: PD TEAM 5 | AY10: =SUMIF($AF$25:$AK$34,AS10,$AT$25:$AT$34)+SUMIF($AM$25:$AR$34,AS10,$AV$25:$AV$34) -> 11 | AZ10: =SUMIF($AF$25:$AK$34,AS10,$AV$25:$AV$34)+SUMIF($AM$25:$AR$34,AS10,$AT$25:$AT$34) -> 9 | BA10: 6.00211 | BB10: =SUMPRODUCT(($AF$25:$AK$34=AS10)*($AX$25:$AX$34=3))+SUMPRODUCT(($AM$25:$AR$34=AS10)*($AZ$25:$AZ$34=3)) -> 1 | BC10: =SUMPRODUCT(($AF$25:$AK$34=AS10)*($AX$25:$AX$34=1))+SUMPRODUCT(($AM$25:$AR$34=AS10)*($AZ$25:$AZ$34=1)) -> 3 | BD10: =SUMPRODUCT(($AF$25:$AK$34=AS10)*($AX$25:$AX$34=0))+SUMPRODUCT(($AM$25:$AR$34=AS10)*($AZ$25:$AZ$34=0)) -> 0 | BE10: =AY10-AZ10 -> 2 | BF10: 3 | BG10: PE TEAM 5 | BM10: =SUMIF($G$38:$L$47,BG10,$U$38:$U$47)+SUMIF($N$38:$S$47,BG10,$W$38:$W$47) -> 13 | BN10: =SUMIF($G$38:$L$47,BG10,$W$38:$W$47)+SUMIF($N$38:$S$47,BG10,$U$38:$U$47) -> 13 | BO10: 5.00013 | BP10: =SUMPRODUCT(($G$38:$L$47=BG10)*($Y$38:$Y$47=3))+SUMPRODUCT(($N$38:$S$47=BG10)*($AA$38:$AA$47=3)) -> 1 | BQ10: =SUMPRODUCT(($G$38:$L$47=BG10)*($Y$38:$Y$47=1))+SUMPRODUCT(($N$38:$S$47=BG10)*($AA$38:$AA$47=1)) -> 2 | BR10: =SUMPRODUCT(($G$38:$L$47=BG10)*($Y$38:$Y$47=0))+SUMPRODUCT(($N$38:$S$47=BG10)*($AA$38:$AA$47=0)) -> 1 | BS10: =BM10-BN10 -> 0 | BU10: 2 | BV10: =VLOOKUP(1,Invulformulier!$BF$6:$BL$10,2,FALSE) -> PE TEAM 4 | CB10: 11 | CC10: 6 | CD10: 7.00511 | CE10: 2 | CF10: 1 | CG10: 1 | CH10: 5
D12: Tijd | G12: VELD 1 | U12: Uitslag | Y12: Punten | AC12: Tijd | AF12: VELD 2 | AT12: Uitslag | AX12: Punten
D13: 09:00:00 | G13: =B6 -> PA TEAM 1 | M13: -- | N13: =B7 -> PA TEAM 2 | U13: 3 | V13: -- | W13: 2 | Y13: =IF(U13="","",IF(U13>W13,3,IF(U13=W13,1,0))) -> 3 | AA13: =IF(W13="","",IF(W13>U13,3,IF(W13=U13,1,0))) -> 0 | AC13: 09:00:00 | AF13: =P6 -> PB TEAM 1 | AL13: -- | AM13: =P7 -> PB TEAM 2 | AT13: 1 | AU13: -- | AV13: 8 | AX13: =IF(AT13="","",IF(AT13>AV13,3,IF(AT13=AV13,1,0))) -> 0 | AZ13: =IF(AV13="","",IF(AV13>AT13,3,IF(AV13=AT13,1,0))) -> 3
D14: 09:20:00 | G14: =B8 -> PA TEAM 3 | M14: -- | N14: =B9 -> PA TEAM 4 | U14: 0 | V14: -- | W14: 0 | Y14: =IF(U14="","",IF(U14>W14,3,IF(U14=W14,1,0))) -> 1 | AA14: =IF(W14="","",IF(W14>U14,3,IF(W14=U14,1,0))) -> 1 | AC14: 09:20:00 | AF14: =P8 -> PB TEAM 3 | AL14: -- | AM14: =P9 -> PB TEAM 4 | AT14: 2 | AU14: -- | AV14: 6 | AX14: =IF(AT14="","",IF(AT14>AV14,3,IF(AT14=AV14,1,0))) -> 0 | AZ14: =IF(AV14="","",IF(AV14>AT14,3,IF(AV14=AT14,1,0))) -> 3
D15: 09:40:00 | G15: =B10 -> PA TEAM 5 | M15: -- | N15: =B6 -> PA TEAM 1 | U15: 5 | V15: -- | W15: 5 | Y15: =IF(U15="","",IF(U15>W15,3,IF(U15=W15,1,0))) -> 1 | AA15: 1 | AC15: 09:40:00 | AF15: =P10 -> PB TEAM 5 | AL15: -- | AM15: =P6 -> PB TEAM 1 | AT15: 3 | AU15: -- | AV15: 8 | AX15: =IF(AT15="","",IF(AT15>AV15,3,IF(AT15=AV15,1,0))) -> 0 | AZ15: 3
D16: 10:00:00 | G16: =B7 -> PA TEAM 2 | M16: -- | N16: =B8 -> PA TEAM 3 | U16: 6 | V16: -- | W16: 3 | Y16: 3 | AA16: 0 | AC16: 10:00:00 | AF16: =P7 -> PB TEAM 2 | AL16: -- | AM16: =P8 -> PB TEAM 3 | AT16: 4 | AU16: -- | AV16: 4 | AX16: 1 | AZ16: 1
D17: 10:20:00 | G17: =B10 -> PA TEAM 5 | M17: -- | N17: =B9 -> PA TEAM 4 | U17: 2 | V17: -- | W17: 8 | Y17: 0 | AA17: 3 | AC17: 10:20:00 | AF17: =P10 -> PB TEAM 5 | AL17: -- | AM17: =P9 -> PB TEAM 4 | AT17: 2 | AU17: -- | AV17: 3 | AX17: 0 | AZ17: 3
D18: 10:40:00 | G18: =B6 -> PA TEAM 1 | M18: -- | N18: =B8 -> PA TEAM 3 | U18: 3 | V18: -- | W18: 5 | Y18: 0 | AA18: 3 | AC18: 10:40:00 | AF18: =P6 -> PB TEAM 1 | AL18: -- | AM18: =P8 -> PB TEAM 3 | AT18: 1 | AU18: -- | AV18: 6 | AX18: 0 | AZ18: 3
D19: 11:00:00 | G19: =B7 -> PA TEAM 2 | M19: -- | N19: =B10 -> PA TEAM 5 | U19: 1 | V19: -- | W19: 2 | Y19: 0 | AA19: 3 | AC19: 11:00:00 | AF19: =P7 -> PB TEAM 2 | AL19: -- | AM19: =P10 -> PB TEAM 5 | AT19: 1 | AU19: -- | AV19: 2 | AX19: 0 | AZ19: 3
D20: 11:20:00 | G20: =B9 -> PA TEAM 4 | M20: -- | N20: =B6 -> PA TEAM 1 | U20: 0 | V20: -- | W20: 0 | Y20: 1 | AA20: 1 | AC20: 11:20:00 | AF20: =P9 -> PB TEAM 4 | AL20: -- | AM20: =P6 -> PB TEAM 1 | AT20: 3 | AU20: -- | AV20: 5 | AX20: 0 | AZ20: 3
D21: 11:40:00 | G21: =B8 -> PA TEAM 3 | M21: -- | N21: =B10 -> PA TEAM 5 | U21: 3 | V21: -- | W21: 2 | Y21: 3 | AA21: 0 | AC21: 11:40:00 | AF21: =P8 -> PB TEAM 3 | AL21: -- | AM21: =P10 -> PB TEAM 5 | AT21: 2 | AU21: -- | AV21: 2 | AX21: 1 | AZ21: 1
D22: 12:00:00 | G22: =B9 -> PA TEAM 4 | M22: -- | N22: =B7 -> PA TEAM 2 | U22: 2 | V22: -- | W22: 1 | Y22: 3 | AA22: 0 | AC22: 12:00:00 | AF22: =P9 -> PB TEAM 4 | AL22: -- | AM22: =P7 -> PB TEAM 2 | AT22: 0 | AU22: -- | AV22: 3 | AX22: 0 | AZ22: 3
D24: Tijd | G24: VELD 3 | U24: Uitslag | Y24: Punten | AC24: Tijd | AF24: VELD 4 | AT24: Uitslag | AX24: Punten
D25: 09:00:00 | G25: =AE6 -> PC TEAM 1 | M25: -- | N25: =AE7 -> PC TEAM 2 | U25: 9 | V25: -- | W25: 2 | Y25: =IF(U25="","",IF(U25>W25,3,IF(U25=W25,1,0))) -> 3 | AA25: =IF(W25="","",IF(W25>U25,3,IF(W25=U25,1,0))) -> 0 | AC25: 09:00:00 | AF25: =AS6 -> PD TEAM 1 | AL25: -- | AM25: =AS7 -> PD TEAM 2 | AT25: 1 | AU25: -- | AV25: 1 | AX25: =IF(AT25="","",IF(AT25>AV25,3,IF(AT25=AV25,1,0))) -> 1 | AZ25: =IF(AV25="","",IF(AV25>AT25,3,IF(AV25=AT25,1,0))) -> 1
D26: 09:20:00 | G26: =AE8 -> PC TEAM 3 | M26: -- | N26: =AE9 -> PC TEAM 4 | U26: 8 | V26: -- | W26: 4 | Y26: =IF(U26="","",IF(U26>W26,3,IF(U26=W26,1,0))) -> 3 | AA26: =IF(W26="","",IF(W26>U26,3,IF(W26=U26,1,0))) -> 0 | AC26: 09:20:00 | AF26: =AS8 -> PD TEAM 3 | AL26: -- | AM26: =AS9 -> PD TEAM 4 | AT26: 1 | AU26: -- | AV26: 0 | AX26: =IF(AT26="","",IF(AT26>AV26,3,IF(AT26=AV26,1,0))) -> 3 | AZ26: =IF(AV26="","",IF(AV26>AT26,3,IF(AV26=AT26,1,0))) -> 0
D27: 09:40:00 | G27: =AE10 -> PC TEAM 5 | M27: -- | N27: =AE6 -> PC TEAM 1 | U27: 7 | V27: -- | W27: 5 | Y27: =IF(U27="","",IF(U27>W27,3,IF(U27=W27,1,0))) -> 3 | AA27: 0 | AC27: 09:40:00 | AF27: =AS10 -> PD TEAM 5 | AL27: -- | AM27: =AS6 -> PD TEAM 1 | AT27: 1 | AU27: -- | AV27: 1 | AX27: =IF(AT27="","",IF(AT27>AV27,3,IF(AT27=AV27,1,0))) -> 1 | AZ27: 1
D28: 10:00:00 | G28: =AE7 -> PC TEAM 2 | M28: -- | N28: =AE8 -> PC TEAM 3 | U28: 4 | V28: -- | W28: 1 | Y28: 3 | AA28: 0 | AC28: 10:00:00 | AF28: =AS7 -> PD TEAM 2 | AL28: -- | AM28: =AS8 -> PD TEAM 3 | AT28: 1 | AU28: -- | AV28: 2 | AX28: 0 | AZ28: 3
D29: 10:20:00 | G29: =AE10 -> PC TEAM 5 | M29: -- | N29: =AE9 -> PC TEAM 4 | U29: 5 | V29: -- | W29: 0 | Y29: 3 | AA29: 0 | AC29: 10:20:00 | AF29: =AS10 -> PD TEAM 5 | AL29: -- | AM29: =AS9 -> PD TEAM 4 | AT29: 2 | AU29: -- | AV29: 2 | AX29: 1 | AZ29: 1
D30: 10:40:00 | G30: =AE6 -> PC TEAM 1 | M30: -- | N30: =AE8 -> PC TEAM 3 | U30: 6 | V30: -- | W30: 8 | Y30: 0 | AA30: 3 | AC30: 10:40:00 | AF30: =AS6 -> PD TEAM 1 | AL30: -- | AM30: =AS8 -> PD TEAM 3 | AT30: 2 | AU30: -- | AV30: 5 | AX30: 0 | AZ30: 3
D31: 11:00:00 | G31: =AE7 -> PC TEAM 2 | M31: -- | N31: =AE10 -> PC TEAM 5 | U31: 1 | V31: -- | W31: 5 | Y31: 0 | AA31: 3 | AC31: 11:00:00 | AF31: =AS7 -> PD TEAM 2 | AL31: -- | AM31: =AS10 -> PD TEAM 5 | AT31: 3 | AU31: -- | AV31: 5 | AX31: 0 | AZ31: 3
D32: 11:20:00 | G32: =AE9 -> PC TEAM 4 | M32: -- | N32: =AE6 -> PC TEAM 1 | U32: 2 | V32: -- | W32: 4 | Y32: 0 | AA32: 3 | AC32: 11:20:00 | AF32: =AS9 -> PD TEAM 4 | AL32: -- | AM32: =AS6 -> PD TEAM 1 | AT32: 3 | AU32: -- | AV32: 3 | AX32: 1 | AZ32: 1
D33: 11:40:00 | G33: =AE8 -> PC TEAM 3 | M33: -- | N33: =AE10 -> PC TEAM 5 | U33: 0 | V33: -- | W33: 3 | Y33: 0 | AA33: 3 | AC33: 11:40:00 | AF33: =AS8 -> PD TEAM 3 | AL33: -- | AM33: =AS10 -> PD TEAM 5 | AT33: 3 | AU33: -- | AV33: 3 | AX33: 1 | AZ33: 1
D34: 12:00:00 | G34: =AE9 -> PC TEAM 4 | M34: -- | N34: =AE7 -> PC TEAM 2 | U34: 1 | V34: -- | W34: 2 | Y34: 0 | AA34: 3 | AC34: 12:00:00 | AF34: =AS9 -> PD TEAM 4 | AL34: -- | AM34: =AS7 -> PD TEAM 2 | AT34: 5 | AU34: -- | AV34: 3 | AX34: 3 | AZ34: 0
D37: Tijd | G37: VELD 5 | U37: Uitslag | Y37: Punten | AC37: Tijd | AF37: FINALE RONDE HOOFDVELD | AT37: Uitslag | AX37: Punten
D38: 09:00:00 | G38: =BG6 -> PE TEAM 1 | M38: -- | N38: =BG7 -> PE TEAM 2 | U38: 2 | V38: -- | W38: 3 | Y38: =IF(U38="","",IF(U38>W38,3,IF(U38=W38,1,0))) -> 0 | AA38: =IF(W38="","",IF(W38>U38,3,IF(W38=U38,1,0))) -> 3 | AC38: 09:00:00 | AF38: =BV6 -> PA TEAM 4 | AL38: -- | AM38: =BV7 -> PB TEAM 2 | AT38: 2 | AU38: -- | AV38: 5 | AX38: =IF(AT38="","",IF(AT38>AV38,3,IF(AT38=AV38,1,0))) -> 0 | AZ38: =IF(AV38="","",IF(AV38>AT38,3,IF(AV38=AT38,1,0))) -> 3
D39: 09:20:00 | G39: =BG8 -> PE TEAM 3 | M39: -- | N39: =BG9 -> PE TEAM 4 | U39: 3 | V39: -- | W39: 5 | Y39: =IF(U39="","",IF(U39>W39,3,IF(U39=W39,1,0))) -> 0 | AA39: =IF(W39="","",IF(W39>U39,3,IF(W39=U39,1,0))) -> 3 | AC39: 09:20:00 | AF39: =BV8 -> PC TEAM 5 | AL39: -- | AM39: =BV9 -> PD TEAM 3 | AT39: 3 | AU39: -- | AV39: 2 | AX39: =IF(AT39="","",IF(AT39>AV39,3,IF(AT39=AV39,1,0))) -> 3 | AZ39: =IF(AV39="","",IF(AV39>AT39,3,IF(AV39=AT39,1,0))) -> 0
D40: 09:40:00 | G40: =BG10 -> PE TEAM 5 | M40: -- | N40: =BG6 -> PE TEAM 1 | U40: 6 | V40: -- | W40: 5 | Y40: =IF(U40="","",IF(U40>W40,3,IF(U40=W40,1,0))) -> 3 | AA40: 0 | AC40: 09:40:00 | AF40: =BV10 -> PE TEAM 4 | AL40: -- | AM40: =BV6 -> PA TEAM 4 | AT40: 0 | AU40: -- | AV40: 0 | AX40: =IF(AT40="","",IF(AT40>AV40,3,IF(AT40=AV40,1,0))) -> 1 | AZ40: 1
D41: 10:00:00 | G41: =BG7 -> PE TEAM 2 | M41: -- | N41: =BG8 -> PE TEAM 3 | U41: 0 | V41: -- | W41: 2 | Y41: 0 | AA41: 3 | AC41: 10:00:00 | AF41: =BV7 -> PB TEAM 2 | AL41: -- | AM41: =BV8 -> PC TEAM 5 | AT41: 1 | AU41: -- | AV41: 2 | AX41: 0 | AZ41: 3
D42: 10:20:00 | G42: =BG10 -> PE TEAM 5 | M42: -- | N42: =BG9 -> PE TEAM 4 | U42: 1 | V42: -- | W42: 1 | Y42: 1 | AA42: 1 | AC42: 10:20:00 | AF42: =BV10 -> PE TEAM 4 | AL42: -- | AM42: =BV9 -> PD TEAM 3 | AT42: 4 | AU42: -- | AV42: 0 | AX42: 3 | AZ42: 0
D43: 10:40:00 | G43: =BG6 -> PE TEAM 1 | M43: -- | N43: =BG8 -> PE TEAM 3 | U43: 2 | V43: -- | W43: 1 | Y43: 3 | AA43: 0 | AC43: 10:40:00 | AF43: =BV6 -> PA TEAM 4 | AL43: -- | AM43: =BV8 -> PC TEAM 5 | AT43: 3 | AU43: -- | AV43: 5 | AX43: 0 | AZ43: 3
D44: 11:00:00 | G44: =BG7 -> PE TEAM 2 | M44: -- | N44: =BG10 -> PE TEAM 5 | U44: 4 | V44: -- | W44: 4 | Y44: 1 | AA44: 1 | AC44: 11:00:00 | AF44: =BV7 -> PB TEAM 2 | AL44: -- | AM44: =BV10 -> PE TEAM 4 | AT44: 6 | AU44: -- | AV44: 5 | AX44: 3 | AZ44: 0
D45: 11:20:00 | G45: =BG9 -> PE TEAM 4 | M45: -- | N45: =BG6 -> PE TEAM 1 | U45: 5 | V45: -- | W45: 3 | Y45: 3 | AA45: 0 | AC45: 11:20:00 | AF45: =BV9 -> PD TEAM 3 | AL45: -- | AM45: =BV6 -> PA TEAM 4 | AT45: 0 | AU45: -- | AV45: 3 | AX45: 0 | AZ45: 3
D46: 11:40:00 | G46: =BG8 -> PE TEAM 3 | M46: -- | N46: =BG10 -> PE TEAM 5 | U46: 3 | V46: -- | W46: 2 | Y46: 3 | AA46: 0 | AC46: 11:40:00 | AF46: =BV8 -> PC TEAM 5 | AL46: -- | AM46: =BV10 -> PE TEAM 4 | AT46: 0 | AU46: -- | AV46: 2 | AX46: 0 | AZ46: 3
D47: 12:00:00 | G47: =BG9 -> PE TEAM 4 | M47: -- | N47: =BG7 -> PE TEAM 2 | U47: 0 | V47: -- | W47: 0 | Y47: 1 | AA47: 1 | AC47: 12:00:00 | AF47: =BV9 -> PD TEAM 3 | AL47: -- | AM47: =BV7 -> PB TEAM 2 | AT47: 1 | AU47: -- | AV47: 1 | AX47: 1 | AZ47: 1
D49: (zie verder op het volgende blad)

Sheet GROEP-1
A1: Stand groep 1 | M1: SCORES BY: OnlineExcelCursus.NL
A2: =Invulformulier!D12 -> Tijd | B2: =Invulformulier!E12 -> 0 | C2: =Invulformulier!G12 -> VELD 1 | F2: =Invulformulier!U12 -> Uitslag | J2: =Invulformulier!Y12 -> Punten
A3: =Invulformulier!D13 -> 09:00:00 | B3: =Invulformulier!E13 -> 00:00:00 | C3: =Invulformulier!G13 -> PA TEAM 1 | D3: =Invulformulier!M13 -> -- | E3: =Invulformulier!N13 -> PA TEAM 2 | F3: =Invulformulier!U13 -> 3 | G3: =Invulformulier!V13 -> -- | H3: =Invulformulier!W13 -> 2 | J3: =Invulformulier!Y13 -> 3 | L3: =Invulformulier!AA13 -> 0
A4: =Invulformulier!D14 -> 09:20:00 | B4: =Invulformulier!E14 -> 00:00:00 | C4: =Invulformulier!G14 -> PA TEAM 3 | D4: =Invulformulier!M14 -> -- | E4: =Invulformulier!N14 -> PA TEAM 4 | F4: =Invulformulier!U14 -> 0 | G4: =Invulformulier!V14 -> -- | H4: =Invulformulier!W14 -> 0 | J4: =Invulformulier!Y14 -> 1 | L4: =Invulformulier!AA14 -> 1
A5: =Invulformulier!D15 -> 09:40:00 | B5: =Invulformulier!E15 -> 00:00:00 | C5: =Invulformulier!G15 -> PA TEAM 5 | D5: =Invulformulier!M15 -> -- | E5: =Invulformulier!N15 -> PA TEAM 1 | F5: =Invulformulier!U15 -> 5 | G5: =Invulformulier!V15 -> -- | H5: =Invulformulier!W15 -> 5 | J5: =Invulformulier!Y15 -> 1 | L5: =Invulformulier!AA15 -> 1
A6: =Invulformulier!D16 -> 10:00:00 | B6: =Invulformulier!E16 -> 00:00:00 | C6: =Invulformulier!G16 -> PA TEAM 2 | D6: =Invulformulier!M16 -> -- | E6: =Invulformulier!N16 -> PA TEAM 3 | F6: =Invulformulier!U16 -> 6 | G6: =Invulformulier!V16 -> -- | H6: =Invulformulier!W16 -> 3 | J6: =Invulformulier!Y16 -> 3 | L6: =Invulformulier!AA16 -> 0
A7: =Invulformulier!D17 -> 10:20:00 | B7: =Invulformulier!E17 -> 00:00:00 | C7: =Invulformulier!G17 -> PA TEAM 5 | D7: =Invulformulier!M17 -> -- | E7: =Invulformulier!N17 -> PA TEAM 4 | F7: =Invulformulier!U17 -> 2 | G7: =Invulformulier!V17 -> -- | H7: =Invulformulier!W17 -> 8 | J7: =Invulformulier!Y17 -> 0 | L7: =Invulformulier!AA17 -> 3
A8: =Invulformulier!D18 -> 10:40:00 | B8: =Invulformulier!E18 -> 00:00:00 | C8: =Invulformulier!G18 -> PA TEAM 1 | D8: =Invulformulier!M18 -> -- | E8: =Invulformulier!N18 -> PA TEAM 3 | F8: =Invulformulier!U18 -> 3 | G8: =Invulformulier!V18 -> -- | H8: =Invulformulier!W18 -> 5 | J8: =Invulformulier!Y18 -> 0 | L8: =Invulformulier!AA18 -> 3
A9: =Invulformulier!D19 -> 11:00:00 | B9: =Invulformulier!E19 -> 00:00:00 | C9: =Invulformulier!G19 -> PA TEAM 2 | D9: =Invulformulier!M19 -> -- | E9: =Invulformulier!N19 -> PA TEAM 5 | F9: =Invulformulier!U19 -> 1 | G9: =Invulformulier!V19 -> -- | H9: =Invulformulier!W19 -> 2 | J9: =Invulformulier!Y19 -> 0 | L9: =Invulformulier!AA19 -> 3
A10: =Invulformulier!D20 -> 11:20:00 | B10: =Invulformulier!E20 -> 00:00:00 | C10: =Invulformulier!G20 -> PA TEAM 4 | D10: =Invulformulier!M20 -> -- | E10: =Invulformulier!N20 -> PA TEAM 1 | F10: =Invulformulier!U20 -> 0 | G10: =Invulformulier!V20 -> -- | H10: =Invulformulier!W20 -> 0 | J10: =Invulformulier!Y20 -> 1 | L10: =Invulformulier!AA20 -> 1
A11: =Invulformulier!D21 -> 11:40:00 | B11: =Invulformulier!E21 -> 00:00:00 | C11: =Invulformulier!G21 -> PA TEAM 3 | D11: =Invulformulier!M21 -> -- | E11: =Invulformulier!N21 -> PA TEAM 5 | F11: =Invulformulier!U21 -> 3 | G11: =Invulformulier!V21 -> -- | H11: =Invulformulier!W21 -> 2 | J11: =Invulformulier!Y21 -> 3 | L11: =Invulformulier!AA21 -> 0
A12: =Invulformulier!D22 -> 12:00:00 | B12: =Invulformulier!E22 -> 00:00:00 | C12: =Invulformulier!G22 -> PA TEAM 4 | D12: =Invulformulier!M22 -> -- | E12: =Invulformulier!N22 -> PA TEAM 2 | F12: =Invulformulier!U22 -> 2 | G12: =Invulformulier!V22 -> -- | H12: =Invulformulier!W22 -> 1 | J12: =Invulformulier!Y22 -> 3 | L12: =Invulformulier!AA22 -> 0
A15: =Invulformulier!A3 -> Stand | B15: =Invulformulier!B5 -> Poule A | F15: Voor | G15: Tegen | H15: Punten | I15: =Invulformulier!K3 -> Gewonnen | J15: =Invulformulier!L3 -> Gelijk | K15: =Invulformulier!M3 -> Verloren | L15: =Invulformulier!N3 -> Saldo
A16: 1 | B16: =VLOOKUP(A16,Invulformulier!$A$6:$N$10,2,FALSE) -> PA TEAM 4 | F16: =VLOOKUP($A$16,Invulformulier!$A$6:$N$10,8,FALSE) -> 10 | G16: =VLOOKUP($A$16,Invulformulier!$A$6:$N$10,9,FALSE) -> 3 | H16: =VLOOKUP($A$16,Invulformulier!$A$6:$N$10,10,FALSE) -> 8.0071 | I16: =VLOOKUP($A$16,Invulformulier!$A$6:$N$10,11,FALSE) -> 2 | J16: =VLOOKUP($A$16,Invulformulier!$A$6:$N$10,12,FALSE) -> 2 | K16: =VLOOKUP($A$16,Invulformulier!$A$6:$N$10,13,FALSE) -> 0 | L16: =VLOOKUP($A$16,Invulformulier!$A$6:$N$10,14,FALSE) -> 7
A17: 2 | B17: =VLOOKUP(A17,Invulformulier!$A$6:$N$10,2,FALSE) -> PA TEAM 3 | F17: =VLOOKUP($A$17,Invulformulier!$A$6:$N$10,8,FALSE) -> 11 | G17: =VLOOKUP($A$17,Invulformulier!$A$6:$N$10,9,FALSE) -> 11 | H17: =VLOOKUP($A$17,Invulformulier!$A$6:$N$10,10,FALSE) -> 7.00011 | I17: =VLOOKUP($A$17,Invulformulier!$A$6:$N$10,11,FALSE) -> 2 | J17: =VLOOKUP($A$17,Invulformulier!$A$6:$N$10,12,FALSE) -> 1 | K17: =VLOOKUP($A$17,Invulformulier!$A$6:$N$10,13,FALSE) -> 1 | L17: =VLOOKUP($A$17,Invulformulier!$A$6:$N$10,14,FALSE) -> 0
A18: 3 | B18: =VLOOKUP(A18,Invulformulier!$A$6:$N$10,2,FALSE) -> PA TEAM 1 | F18: =VLOOKUP($A$18,Invulformulier!$A$6:$N$10,8,FALSE) -> 11 | G18: =VLOOKUP($A$18,Invulformulier!$A$6:$N$10,9,FALSE) -> 12 | H18: =VLOOKUP($A$18,Invulformulier!$A$6:$N$10,10,FALSE) -> 4.99911 | I18: =VLOOKUP($A$18,Invulformulier!$A$6:$N$10,11,FALSE) -> 1 | J18: =VLOOKUP($A$18,Invulformulier!$A$6:$N$10,12,FALSE) -> 2 | K18: =VLOOKUP($A$18,Invulformulier!$A$6:$N$10,13,FALSE) -> 1 | L18: =VLOOKUP($A$18,Invulformulier!$A$6:$N$10,14,FALSE) -> -1
A19: 4 | B19: =VLOOKUP(A19,Invulformulier!$A$6:$N$10,2,FALSE) -> PA TEAM 5 | F19: =VLOOKUP($A$19,Invulformulier!$A$6:$N$10,8,FALSE) -> 11 | G19: =VLOOKUP($A$19,Invulformulier!$A$6:$N$10,9,FALSE) -> 17 | H19: =VLOOKUP($A$19,Invulformulier!$A$6:$N$10,10,FALSE) -> 3.99411 | I19: =VLOOKUP($A$19,Invulformulier!$A$6:$N$10,11,FALSE) -> 1 | J19: =VLOOKUP($A$19,Invulformulier!$A$6:$N$10,12,FALSE) -> 1 | K19: =VLOOKUP($A$19,Invulformulier!$A$6:$N$10,13,FALSE) -> 2 | L19: =VLOOKUP($A$19,Invulformulier!$A$6:$N$10,14,FALSE) -> -6
A20: 5 | B20: =VLOOKUP(A20,Invulformulier!$A$6:$N$10,2,FALSE) -> PA TEAM 2 | F20: =VLOOKUP($A$20,Invulformulier!$A$6:$N$10,8,FALSE) -> 10 | G20: =VLOOKUP($A$20,Invulformulier!$A$6:$N$10,9,FALSE) -> 10 | H20: =VLOOKUP($A$20,Invulformulier!$A$6:$N$10,10,FALSE) -> 3.0001 | I20: =VLOOKUP($A$20,Invulformulier!$A$6:$N$10,11,FALSE) -> 1 | J20: =VLOOKUP($A$20,Invulformulier!$A$6:$N$10,12,FALSE) -> 0 | K20: =VLOOKUP($A$20,Invulformulier!$A$6:$N$10,13,FALSE) -> 3 | L20: =VLOOKUP($A$20,Invulformulier!$A$6:$N$10,14,FALSE) -> 0

Sheet GROEP-2
A1: Stand groep 2 | M1: SCORES BY: OnlineExcelCursus.NL
A2: =Invulformulier!AC12 -> Tijd | C2: =Invulformulier!AF12 -> VELD 2 | F2: =Invulformulier!AT12 -> Uitslag | J2: =Invulformulier!AX12 -> Punten
A3: =Invulformulier!AC13 -> 09:00:00 | B3: =Invulformulier!AD13 -> 00:00:00 | C3: =Invulformulier!AF13 -> PB TEAM 1 | D3: =Invulformulier!AL13 -> -- | E3: =Invulformulier!AM13 -> PB TEAM 2 | F3: =Invulformulier!AT13 -> 1 | G3: =Invulformulier!AU13 -> -- | H3: =Invulformulier!AV13 -> 8 | J3: =Invulformulier!AX13 -> 0 | L3: =Invulformulier!AZ13 -> 3
A4: =Invulformulier!AC14 -> 09:20:00 | B4: =Invulformulier!AD14 -> 00:00:00 | C4: =Invulformulier!AF14 -> PB TEAM 3 | D4: =Invulformulier!AL14 -> -- | E4: =Invulformulier!AM14 -> PB TEAM 4 | F4: =Invulformulier!AT14 -> 2 | G4: =Invulformulier!AU14 -> -- | H4: =Invulformulier!AV14 -> 6 | J4: =Invulformulier!AX14 -> 0 | L4: =Invulformulier!AZ14 -> 3
A5: =Invulformulier!AC15 -> 09:40:00 | B5: =Invulformulier!AD15 -> 00:00:00 | C5: =Invulformulier!AF15 -> PB TEAM 5 | D5: =Invulformulier!AL15 -> -- | E5: =Invulformulier!AM15 -> PB TEAM 1 | F5: =Invulformulier!AT15 -> 3 | G5: =Invulformulier!AU15 -> -- | H5: =Invulformulier!AV15 -> 8 | J5: =Invulformulier!AX15 -> 0 | L5: =Invulformulier!AZ15 -> 3
A6: =Invulformulier!AC16 -> 10:00:00 | B6: =Invulformulier!AD16 -> 00:00:00 | C6: =Invulformulier!AF16 -> PB TEAM 2 | D6: =Invulformulier!AL16 -> -- | E6: =Invulformulier!AM16 -> PB TEAM 3 | F6: =Invulformulier!AT16 -> 4 | G6: =Invulformulier!AU16 -> -- | H6: =Invulformulier!AV16 -> 4 | J6: =Invulformulier!AX16 -> 1 | L6: =Invulformulier!AZ16 -> 1
A7: =Invulformulier!AC17 -> 10:20:00 | B7: =Invulformulier!AD17 -> 00:00:00 | C7: =Invulformulier!AF17 -> PB TEAM 5 | D7: =Invulformulier!AL17 -> -- | E7: =Invulformulier!AM17 -> PB TEAM 4 | F7: =Invulformulier!AT17 -> 2 | G7: =Invulformulier!AU17 -> -- | H7: =Invulformulier!AV17 -> 3 | J7: =Invulformulier!AX17 -> 0 | L7: =Invulformulier!AZ17 -> 3
A8: =Invulformulier!AC18 -> 10:40:00 | B8: =Invulformulier!AD18 -> 00:00:00 | C8: =Invulformulier!AF18 -> PB TEAM 1 | D8: =Invulformulier!AL18 -> -- | E8: =Invulformulier!AM18 -> PB TEAM 3 | F8: =Invulformulier!AT18 -> 1 | G8: =Invulformulier!AU18 -> -- | H8: =Invulformulier!AV18 -> 6 | J8: =Invulformulier!AX18 -> 0 | L8: =Invulformulier!AZ18 -> 3
A9: =Invulformulier!AC19 -> 11:00:00 | B9: =Invulformulier!AD19 -> 00:00:00 | C9: =Invulformulier!AF19 -> PB TEAM 2 | D9: =Invulformulier!AL19 -> -- | E9: =Invulformulier!AM19 -> PB TEAM 5 | F9: =Invulformulier!AT19 -> 1 | G9: =Invulformulier!AU19 -> -- | H9: =Invulformulier!AV19 -> 2 | J9: =Invulformulier!AX19 -> 0 | L9: =Invulformulier!AZ19 -> 3
A10: =Invulformulier!AC20 -> 11:20:00 | B10: =Invulformulier!AD20 -> 00:00:00 | C10: =Invulformulier!AF20 -> PB TEAM 4 | D10: =Invulformulier!AL20 -> -- | E10: =Invulformulier!AM20 -> PB TEAM 1 | F10: =Invulformulier!AT20 -> 3 | G10: =Invulformulier!AU20 -> -- | H10: =Invulformulier!AV20 -> 5 | J10: =Invulformulier!AX20 -> 0 | L10: =Invulformulier!AZ20 -> 3
A11: =Invulformulier!AC21 -> 11:40:00 | B11: =Invulformulier!AD21 -> 00:00:00 | C11: =Invulformulier!AF21 -> PB TEAM 3 | D11: =Invulformulier!AL21 -> -- | E11: =Invulformulier!AM21 -> PB TEAM 5 | F11: =Invulformulier!AT21 -> 2 | G11: =Invulformulier!AU21 -> -- | H11: =Invulformulier!AV21 -> 2 | J11: =Invulformulier!AX21 -> 1 | L11: =Invulformulier!AZ21 -> 1
A12: =Invulformulier!AC22 -> 12:00:00 | B12: =Invulformulier!AD22 -> 00:00:00 | C12: =Invulformulier!AF22 -> PB TEAM 4 | D12: =Invulformulier!AL22 -> -- | E12: =Invulformulier!AM22 -> PB TEAM 2 | F12: =Invulformulier!AT22 -> 0 | G12: =Invulformulier!AU22 -> -- | H12: =Invulformulier!AV22 -> 3 | J12: =Invulformulier!AX22 -> 0 | L12: =Invulformulier!AZ22 -> 3
A15: Stand | B15: =Invulformulier!P5 -> Poule B | F15: Voor | G15: Tegen | H15: Punten | I15: =Invulformulier!Z3 -> Gewonnen | J15: =Invulformulier!AA3 -> Gelijk | K15: =Invulformulier!AB3 -> Verloren | L15: =Invulformulier!AC3 -> Saldo
A16: 1 | B16: =VLOOKUP(A16,Invulformulier!$O$6:$AC$10,2,FALSE) -> PB TEAM 2 | F16: =VLOOKUP($A16,Invulformulier!$O$6:$AC$10,9,FALSE) -> 16 | G16: =VLOOKUP($A16,Invulformulier!$O$6:$AC$10,10,FALSE) -> 7 | H16: =VLOOKUP($A16,Invulformulier!$O$6:$AC$10,11,FALSE) -> 7.00916 | I16: =VLOOKUP($A16,Invulformulier!$O$6:$AC$10,12,FALSE) -> 2 | J16: =VLOOKUP($A16,Invulformulier!$O$6:$AC$10,13,FALSE) -> 1 | K16: =VLOOKUP($A16,Invulformulier!$O$6:$AC$10,14,FALSE) -> 1 | L16: =VLOOKUP($A16,Invulformulier!$O$6:$AC$10,15,FALSE) -> 9
A17: 2 | B17: =VLOOKUP(A17,Invulformulier!$O$6:$AC$10,2,FALSE) -> PB TEAM 4 | F17: =VLOOKUP($A17,Invulformulier!$O$6:$AC$10,9,FALSE) -> 12 | G17: =VLOOKUP($A17,Invulformulier!$O$6:$AC$10,10,FALSE) -> 12 | H17: =VLOOKUP($A17,Invulformulier!$O$6:$AC$10,11,FALSE) -> 6.00012 | I17: =VLOOKUP($A17,Invulformulier!$O$6:$AC$10,12,FALSE) -> 2 | J17: =VLOOKUP($A17,Invulformulier!$O$6:$AC$10,13,FALSE) -> 0 | K17: =VLOOKUP($A17,Invulformulier!$O$6:$AC$10,14,FALSE) -> 2 | L17: =VLOOKUP($A17,Invulformulier!$O$6:$AC$10,15,FALSE) -> 0
A18: 3 | B18: =VLOOKUP(A18,Invulformulier!$O$6:$AC$10,2,FALSE) -> PB TEAM 1 | F18: =VLOOKUP($A18,Invulformulier!$O$6:$AC$10,9,FALSE) -> 15 | G18: =VLOOKUP($A18,Invulformulier!$O$6:$AC$10,10,FALSE) -> 20 | H18: =VLOOKUP($A18,Invulformulier!$O$6:$AC$10,11,FALSE) -> 5.99515 | I18: =VLOOKUP($A18,Invulformulier!$O$6:$AC$10,12,FALSE) -> 2 | J18: =VLOOKUP($A18,Invulformulier!$O$6:$AC$10,13,FALSE) -> 0 | K18: =VLOOKUP($A18,Invulformulier!$O$6:$AC$10,14,FALSE) -> 2 | L18: =VLOOKUP($A18,Invulformulier!$O$6:$AC$10,15,FALSE) -> -5
A19: 4 | B19: =VLOOKUP(A19,Invulformulier!$O$6:$AC$10,2,FALSE) -> PB TEAM 3 | F19: =VLOOKUP($A19,Invulformulier!$O$6:$AC$10,9,FALSE) -> 14 | G19: =VLOOKUP($A19,Invulformulier!$O$6:$AC$10,10,FALSE) -> 13 | H19: =VLOOKUP($A19,Invulformulier!$O$6:$AC$10,11,FALSE) -> 5.00114 | I19: =VLOOKUP($A19,Invulformulier!$O$6:$AC$10,12,FALSE) -> 1 | J19: =VLOOKUP($A19,Invulformulier!$O$6:$AC$10,13,FALSE) -> 2 | K19: =VLOOKUP($A19,Invulformulier!$O$6:$AC$10,14,FALSE) -> 1 | L19: =VLOOKUP($A19,Invulformulier!$O$6:$AC$10,15,FALSE) -> 1
A20: 5 | B20: =VLOOKUP(A20,Invulformulier!$O$6:$AC$10,2,FALSE) -> PB TEAM 5 | F20: =VLOOKUP($A20,Invulformulier!$O$6:$AC$10,9,FALSE) -> 9 | G20: =VLOOKUP($A20,Invulformulier!$O$6:$AC$10,10,FALSE) -> 14 | H20: =VLOOKUP($A20,Invulformulier!$O$6:$AC$10,11,FALSE) -> 3.99509 | I20: =VLOOKUP($A20,Invulformulier!$O$6:$AC$10,12,FALSE) -> 1 | J20: =VLOOKUP($A20,Invulformulier!$O$6:$AC$10,13,FALSE) -> 1 | K20: =VLOOKUP($A20,Invulformulier!$O$6:$AC$10,14,FALSE) -> 2 | L20: =VLOOKUP($A20,Invulformulier!$O$6:$AC$10,15,FALSE) -> -5

Sheet GROEP-3
A1: Stand groep 3 | M1: SCORES BY: OnlineExcelCursus.NL
A2: =Invulformulier!D24 -> Tijd | B2: =Invulformulier!E24 -> 0 | C2: =Invulformulier!G24 -> VELD 3 | F2: =Invulformulier!U24 -> Uitslag | G2: =Invulformulier!V24 -> 0 | H2: =Invulformulier!W24 -> 0 | J2: =Invulformulier!Y24 -> Punten
A3: =Invulformulier!D25 -> 09:00:00 | B3: =Invulformulier!E25 -> 00:00:00 | C3: =Invulformulier!G25 -> PC TEAM 1 | D3: =Invulformulier!M25 -> -- | E3: =Invulformulier!N25 -> PC TEAM 2 | F3: =Invulformulier!U25 -> 9 | G3: =Invulformulier!V25 -> -- | H3: =Invulformulier!W25 -> 2 | J3: =Invulformulier!Y25 -> 3 | L3: =Invulformulier!AA25 -> 0
A4: =Invulformulier!D26 -> 09:20:00 | B4: =Invulformulier!E26 -> 00:00:00 | C4: =Invulformulier!G26 -> PC TEAM 3 | D4: =Invulformulier!M26 -> -- | E4: =Invulformulier!N26 -> PC TEAM 4 | F4: =Invulformulier!U26 -> 8 | G4: =Invulformulier!V26 -> -- | H4: =Invulformulier!W26 -> 4 | J4: =Invulformulier!Y26 -> 3 | L4: =Invulformulier!AA26 -> 0
A5: =Invulformulier!D27 -> 09:40:00 | B5: =Invulformulier!E27 -> 00:00:00 | C5: =Invulformulier!G27 -> PC TEAM 5 | D5: =Invulformulier!M27 -> -- | E5: =Invulformulier!N27 -> PC TEAM 1 | F5: =Invulformulier!U27 -> 7 | G5: =Invulformulier!V27 -> -- | H5: =Invulformulier!W27 -> 5 | J5: =Invulformulier!Y27 -> 3 | L5: =Invulformulier!AA27 -> 0
A6: =Invulformulier!D28 -> 10:00:00 | B6: =Invulformulier!E28 -> 00:00:00 | C6: =Invulformulier!G28 -> PC TEAM 2 | D6: =Invulformulier!M28 -> -- | E6: =Invulformulier!N28 -> PC TEAM 3 | F6: =Invulformulier!U28 -> 4 | G6: =Invulformulier!V28 -> -- | H6: =Invulformulier!W28 -> 1 | J6: =Invulformulier!Y28 -> 3 | L6: =Invulformulier!AA28 -> 0
A7: =Invulformulier!D29 -> 10:20:00 | B7: =Invulformulier!E29 -> 00:00:00 | C7: =Invulformulier!G29 -> PC TEAM 5 | D7: =Invulformulier!M29 -> -- | E7: =Invulformulier!N29 -> PC TEAM 4 | F7: =Invulformulier!U29 -> 5 | G7: =Invulformulier!V29 -> -- | H7: =Invulformulier!W29 -> 0 | J7: =Invulformulier!Y29 -> 3 | L7: =Invulformulier!AA29 -> 0
A8: =Invulformulier!D30 -> 10:40:00 | B8: =Invulformulier!E30 -> 00:00:00 | C8: =Invulformulier!G30 -> PC TEAM 1 | D8: =Invulformulier!M30 -> -- | E8: =Invulformulier!N30 -> PC TEAM 3 | F8: =Invulformulier!U30 -> 6 | G8: =Invulformulier!V30 -> -- | H8: =Invulformulier!W30 -> 8 | J8: =Invulformulier!Y30 -> 0 | L8: =Invulformulier!AA30 -> 3
A9: =Invulformulier!D31 -> 11:00:00 | B9: =Invulformulier!E31 -> 00:00:00 | C9: =Invulformulier!G31 -> PC TEAM 2 | D9: =Invulformulier!M31 -> -- | E9: =Invulformulier!N31 -> PC TEAM 5 | F9: =Invulformulier!U31 -> 1 | G9: =Invulformulier!V31 -> -- | H9: =Invulformulier!W31 -> 5 | J9: =Invulformulier!Y31 -> 0 | L9: =Invulformulier!AA31 -> 3
A10: =Invulformulier!D32 -> 11:20:00 | B10: =Invulformulier!E32 -> 00:00:00 | C10: =Invulformulier!G32 -> PC TEAM 4 | D10: =Invulformulier!M32 -> -- | E10: =Invulformulier!N32 -> PC TEAM 1 | F10: =Invulformulier!U32 -> 2 | G10: =Invulformulier!V32 -> -- | H10: =Invulformulier!W32 -> 4 | J10: =Invulformulier!Y32 -> 0 | L10: =Invulformulier!AA32 -> 3
A11: =Invulformulier!D33 -> 11:40:00 | B11: =Invulformulier!E33 -> 00:00:00 | C11: =Invulformulier!G33 -> PC TEAM 3 | D11: =Invulformulier!M33 -> -- | E11: =Invulformulier!N33 -> PC TEAM 5 | F11: =Invulformulier!U33 -> 0 | G11: =Invulformulier!V33 -> -- | H11: =Invulformulier!W33 -> 3 | J11: =Invulformulier!Y33 -> 0 | L11: =Invulformulier!AA33 -> 3
A12: =Invulformulier!D34 -> 12:00:00 | B12: =Invulformulier!E34 -> 00:00:00 | C12: =Invulformulier!G34 -> PC TEAM 4 | D12: =Invulformulier!M34 -> -- | E12: =Invulformulier!N34 -> PC TEAM 2 | F12: =Invulformulier!U34 -> 1 | G12: =Invulformulier!V34 -> -- | H12: =Invulformulier!W34 -> 2 | J12: =Invulformulier!Y34 -> 0 | L12: =Invulformulier!AA34 -> 3
A15: =Invulformulier!AD3 -> Stand | B15: =Invulformulier!AE5 -> Poule C | F15: Voor | G15: Tegen | H15: Punten | I15: =Invulformulier!AN3 -> Gewonnen | J15: =Invulformulier!AO3 -> Gelijk | K15: =Invulformulier!AP3 -> Verloren | L15: =Invulformulier!AQ3 -> Saldo
A16: 1 | B16: =VLOOKUP(A16,Invulformulier!$AD$6:$AQ$10,2,FALSE) -> PC TEAM 5 | F16: =VLOOKUP($A16,Invulformulier!$AD$6:$AQ$10,8,FALSE) -> 20 | G16: =VLOOKUP($A16,Invulformulier!$AD$6:$AQ$10,9,FALSE) -> 6 | H16: =VLOOKUP($A16,Invulformulier!$AD$6:$AQ$10,10,FALSE) -> 12.0142 | I16: =VLOOKUP($A16,Invulformulier!$AD$6:$AQ$10,11,FALSE) -> 4 | J16: =VLOOKUP($A16,Invulformulier!$AD$6:$AQ$10,12,FALSE) -> 0 | K16: =VLOOKUP($A16,Invulformulier!$AD$6:$AQ$10,13,FALSE) -> 0 | L16: =VLOOKUP($A16,Invulformulier!$AD$6:$AQ$10,14,FALSE) -> 14
A17: 2 | B17: =VLOOKUP(A17,Invulformulier!$AD$6:$AQ$10,2,FALSE) -> PC TEAM 1 | F17: =VLOOKUP($A17,Invulformulier!$AD$6:$AQ$10,8,FALSE) -> 24 | G17: =VLOOKUP($A17,Invulformulier!$AD$6:$AQ$10,9,FALSE) -> 19 | H17: =VLOOKUP($A17,Invulformulier!$AD$6:$AQ$10,10,FALSE) -> 6.00524 | I17: =VLOOKUP($A17,Invulformulier!$AD$6:$AQ$10,11,FALSE) -> 2 | J17: =VLOOKUP($A17,Invulformulier!$AD$6:$AQ$10,12,FALSE) -> 0 | K17: =VLOOKUP($A17,Invulformulier!$AD$6:$AQ$10,13,FALSE) -> 2 | L17: =VLOOKUP($A17,Invulformulier!$AD$6:$AQ$10,14,FALSE) -> 5
A18: 3 | B18: =VLOOKUP(A18,Invulformulier!$AD$6:$AQ$10,2,FALSE) -> PC TEAM 3 | F18: =VLOOKUP($A18,Invulformulier!$AD$6:$AQ$10,8,FALSE) -> 17 | G18: =VLOOKUP($A18,Invulformulier!$AD$6:$AQ$10,9,FALSE) -> 17 | H18: =VLOOKUP($A18,Invulformulier!$AD$6:$AQ$10,10,FALSE) -> 6.00017 | I18: =VLOOKUP($A18,Invulformulier!$AD$6:$AQ$10,11,FALSE) -> 2 | J18: =VLOOKUP($A18,Invulformulier!$AD$6:$AQ$10,12,FALSE) -> 0 | K18: =VLOOKUP($A18,Invulformulier!$AD$6:$AQ$10,13,FALSE) -> 2 | L18: =VLOOKUP($A18,Invulformulier!$AD$6:$AQ$10,14,FALSE) -> 0
A19: 4 | B19: =VLOOKUP(A19,Invulformulier!$AD$6:$AQ$10,2,FALSE) -> PC TEAM 2 | F19: =VLOOKUP($A19,Invulformulier!$AD$6:$AQ$10,8,FALSE) -> 9 | G19: =VLOOKUP($A19,Invulformulier!$AD$6:$AQ$10,9,FALSE) -> 16 | H19: =VLOOKUP($A19,Invulformulier!$AD$6:$AQ$10,10,FALSE) -> 5.99309 | I19: =VLOOKUP($A19,Invulformulier!$AD$6:$AQ$10,11,FALSE) -> 2 | J19: =VLOOKUP($A19,Invulformulier!$AD$6:$AQ$10,12,FALSE) -> 0 | K19: =VLOOKUP($A19,Invulformulier!$AD$6:$AQ$10,13,FALSE) -> 2 | L19: =VLOOKUP($A19,Invulformulier!$AD$6:$AQ$10,14,FALSE) -> -7
A20: 5 | B20: =VLOOKUP(A20,Invulformulier!$AD$6:$AQ$10,2,FALSE) -> PC TEAM 4 | F20: =VLOOKUP($A20,Invulformulier!$AD$6:$AQ$10,8,FALSE) -> 7 | G20: =VLOOKUP($A20,Invulformulier!$AD$6:$AQ$10,9,FALSE) -> 19 | H20: =VLOOKUP($A20,Invulformulier!$AD$6:$AQ$10,10,FALSE) -> -0.01193 | I20: =VLOOKUP($A20,Invulformulier!$AD$6:$AQ$10,11,FALSE) -> 0 | J20: =VLOOKUP($A20,Invulformulier!$AD$6:$AQ$10,12,FALSE) -> 0 | K20: =VLOOKUP($A20,Invulformulier!$AD$6:$AQ$10,13,FALSE) -> 4 | L20: =VLOOKUP($A20,Invulformulier!$AD$6:$AQ$10,14,FALSE) -> -12

Sheet GROEP-4
A1: Stand groep 4 | M1: SCORES BY: OnlineExcelCursus.NL
A2: =Invulformulier!AC24 -> Tijd | B2: =Invulformulier!AD24 -> 0 | C2: =Invulformulier!AF24 -> VELD 4 | F2: =Invulformulier!AT24 -> Uitslag | G2: =Invulformulier!AU24 -> 0 | H2: =Invulformulier!AV24 -> 0 | J2: =Invulformulier!AX24 -> Punten | K2: =Invulformulier!AY24 -> 0 | L2: =Invulformulier!AZ24 -> 0
A3: =Invulformulier!AC25 -> 09:00:00 | B3: =Invulformulier!AD25 -> 00:00:00 | C3: =Invulformulier!AF25 -> PD TEAM 1 | D3: =Invulformulier!AL25 -> -- | E3: =Invulformulier!AM25 -> PD TEAM 2 | F3: =Invulformulier!AT25 -> 1 | G3: =Invulformulier!AU25 -> -- | H3: =Invulformulier!AV25 -> 1 | J3: =Invulformulier!AX25 -> 1 | L3: =Invulformulier!AZ25 -> 1
A4: =Invulformulier!AC26 -> 09:20:00 | B4: =Invulformulier!AD26 -> 00:00:00 | C4: =Invulformulier!AF26 -> PD TEAM 3 | D4: =Invulformulier!AL26 -> -- | E4: =Invulformulier!AM26 -> PD TEAM 4 | F4: =Invulformulier!AT26 -> 1 | G4: =Invulformulier!AU26 -> -- | H4: =Invulformulier!AV26 -> 0 | J4: =Invulformulier!AX26 -> 3 | L4: =Invulformulier!AZ26 -> 0
A5: =Invulformulier!AC27 -> 09:40:00 | B5: =Invulformulier!AD27 -> 00:00:00 | C5: =Invulformulier!AF27 -> PD TEAM 5 | D5: =Invulformulier!AL27 -> -- | E5: =Invulformulier!AM27 -> PD TEAM 1 | F5: =Invulformulier!AT27 -> 1 | G5: =Invulformulier!AU27 -> -- | H5: =Invulformulier!AV27 -> 1 | J5: =Invulformulier!AX27 -> 1 | L5: =Invulformulier!AZ27 -> 1
A6: =Invulformulier!AC28 -> 10:00:00 | B6: =Invulformulier!AD28 -> 00:00:00 | C6: =Invulformulier!AF28 -> PD TEAM 2 | D6: =Invulformulier!AL28 -> -- | E6: =Invulformulier!AM28 -> PD TEAM 3 | F6: =Invulformulier!AT28 -> 1 | G6: =Invulformulier!AU28 -> -- | H6: =Invulformulier!AV28 -> 2 | J6: =Invulformulier!AX28 -> 0 | L6: =Invulformulier!AZ28 -> 3
A7: =Invulformulier!AC29 -> 10:20:00 | B7: =Invulformulier!AD29 -> 00:00:00 | C7: =Invulformulier!AF29 -> PD TEAM 5 | D7: =Invulformulier!AL29 -> -- | E7: =Invulformulier!AM29 -> PD TEAM 4 | F7: =Invulformulier!AT29 -> 2 | G7: =Invulformulier!AU29 -> -- | H7: =Invulformulier!AV29 -> 2 | J7: =Invulformulier!AX29 -> 1 | L7: =Invulformulier!AZ29 -> 1
A8: =Invulformulier!AC30 -> 10:40:00 | B8: =Invulformulier!AD30 -> 00:00:00 | C8: =Invulformulier!AF30 -> PD TEAM 1 | D8: =Invulformulier!AL30 -> -- | E8: =Invulformulier!AM30 -> PD TEAM 3 | F8: =Invulformulier!AT30 -> 2 | G8: =Invulformulier!AU30 -> -- | H8: =Invulformulier!AV30 -> 5 | J8: =Invulformulier!AX30 -> 0 | L8: =Invulformulier!AZ30 -> 3
A9: =Invulformulier!AC31 -> 11:00:00 | B9: =Invulformulier!AD31 -> 00:00:00 | C9: =Invulformulier!AF31 -> PD TEAM 2 | D9: =Invulformulier!AL31 -> -- | E9: =Invulformulier!AM31 -> PD TEAM 5 | F9: =Invulformulier!AT31 -> 3 | G9: =Invulformulier!AU31 -> -- | H9: =Invulformulier!AV31 -> 5 | J9: =Invulformulier!AX31 -> 0 | L9: =Invulformulier!AZ31 -> 3
A10: =Invulformulier!AC32 -> 11:20:00 | B10: =Invulformulier!AD32 -> 00:00:00 | C10: =Invulformulier!AF32 -> PD TEAM 4 | D10: =Invulformulier!AL32 -> -- | E10: =Invulformulier!AM32 -> PD TEAM 1 | F10: =Invulformulier!AT32 -> 3 | G10: =Invulformulier!AU32 -> -- | H10: =Invulformulier!AV32 -> 3 | J10: =Invulformulier!AX32 -> 1 | L10: =Invulformulier!AZ32 -> 1
A11: =Invulformulier!AC33 -> 11:40:00 | B11: =Invulformulier!AD33 -> 00:00:00 | C11: =Invulformulier!AF33 -> PD TEAM 3 | D11: =Invulformulier!AL33 -> -- | E11: =Invulformulier!AM33 -> PD TEAM 5 | F11: =Invulformulier!AT33 -> 3 | G11: =Invulformulier!AU33 -> -- | H11: =Invulformulier!AV33 -> 3 | J11: =Invulformulier!AX33 -> 1 | L11: =Invulformulier!AZ33 -> 1
A12: =Invulformulier!AC34 -> 12:00:00 | B12: =Invulformulier!AD34 -> 00:00:00 | C12: =Invulformulier!AF34 -> PD TEAM 4 | D12: =Invulformulier!AL34 -> -- | E12: =Invulformulier!AM34 -> PD TEAM 2 | F12: =Invulformulier!AT34 -> 5 | G12: =Invulformulier!AU34 -> -- | H12: =Invulformulier!AV34 -> 3 | J12: =Invulformulier!AX34 -> 3 | L12: =Invulformulier!AZ34 -> 0
A15: =Invulformulier!AR3 -> Stand | B15: =Invulformulier!AS5 -> Poule D | F15: Voor | G15: Tegen | H15: Punten | I15: =Invulformulier!BB3 -> Gewonnen | J15: =Invulformulier!BC3 -> Gelijk | K15: =Invulformulier!BD3 -> Verloren | L15: =Invulformulier!BE3 -> Saldo
A16: 1 | B16: =VLOOKUP(A16,Invulformulier!$AR$6:$BE$10,2,FALSE) -> PD TEAM 3 | F16: =VLOOKUP($A16,Invulformulier!$AR$6:$BE$10,8,FALSE) -> 11 | G16: =VLOOKUP($A16,Invulformulier!$AR$6:$BE$10,9,FALSE) -> 6 | H16: =VLOOKUP($A16,Invulformulier!$AR$6:$BE$10,10,FALSE) -> 10.00511 | I16: =VLOOKUP($A16,Invulformulier!$AR$6:$BE$10,11,FALSE) -> 3 | J16: =VLOOKUP($A16,Invulformulier!$AR$6:$BE$10,12,FALSE) -> 1 | K16: =VLOOKUP($A16,Invulformulier!$AR$6:$BE$10,13,FALSE) -> 0 | L16: =VLOOKUP($A16,Invulformulier!$AR$6:$BE$10,14,FALSE) -> 5
A17: 2 | B17: =VLOOKUP(A17,Invulformulier!$AR$6:$BE$10,2,FALSE) -> PD TEAM 5 | F17: =VLOOKUP($A17,Invulformulier!$AR$6:$BE$10,8,FALSE) -> 11 | G17: =VLOOKUP($A17,Invulformulier!$AR$6:$BE$10,9,FALSE) -> 9 | H17: =VLOOKUP($A17,Invulformulier!$AR$6:$BE$10,10,FALSE) -> 6.00211 | I17: =VLOOKUP($A17,Invulformulier!$AR$6:$BE$10,11,FALSE) -> 1 | J17: =VLOOKUP($A17,Invulformulier!$AR$6:$BE$10,12,FALSE) -> 3 | K17: =VLOOKUP($A17,Invulformulier!$AR$6:$BE$10,13,FALSE) -> 0 | L17: =VLOOKUP($A17,Invulformulier!$AR$6:$BE$10,14,FALSE) -> 2
A18: 3 | B18: =VLOOKUP(A18,Invulformulier!$AR$6:$BE$10,2,FALSE) -> PD TEAM 4 | F18: =VLOOKUP($A18,Invulformulier!$AR$6:$BE$10,8,FALSE) -> 10 | G18: =VLOOKUP($A18,Invulformulier!$AR$6:$BE$10,9,FALSE) -> 9 | H18: =VLOOKUP($A18,Invulformulier!$AR$6:$BE$10,10,FALSE) -> 5.0011 | I18: =VLOOKUP($A18,Invulformulier!$AR$6:$BE$10,11,FALSE) -> 1 | J18: =VLOOKUP($A18,Invulformulier!$AR$6:$BE$10,12,FALSE) -> 2 | K18: =VLOOKUP($A18,Invulformulier!$AR$6:$BE$10,13,FALSE) -> 1 | L18: =VLOOKUP($A18,Invulformulier!$AR$6:$BE$10,14,FALSE) -> 1
A19: 4 | B19: =VLOOKUP(A19,Invulformulier!$AR$6:$BE$10,2,FALSE) -> PD TEAM 1 | F19: =VLOOKUP($A19,Invulformulier!$AR$6:$BE$10,8,FALSE) -> 7 | G19: =VLOOKUP($A19,Invulformulier!$AR$6:$BE$10,9,FALSE) -> 10 | H19: =VLOOKUP($A19,Invulformulier!$AR$6:$BE$10,10,FALSE) -> 2.99707 | I19: =VLOOKUP($A19,Invulformulier!$AR$6:$BE$10,11,FALSE) -> 0 | J19: =VLOOKUP($A19,Invulformulier!$AR$6:$BE$10,12,FALSE) -> 3 | K19: =VLOOKUP($A19,Invulformulier!$AR$6:$BE$10,13,FALSE) -> 1 | L19: =VLOOKUP($A19,Invulformulier!$AR$6:$BE$10,14,FALSE) -> -3
A20: 5 | B20: =VLOOKUP(A20,Invulformulier!$AR$6:$BE$10,2,FALSE) -> PD TEAM 2 | F20: =VLOOKUP($A20,Invulformulier!$AR$6:$BE$10,8,FALSE) -> 8 | G20: =VLOOKUP($A20,Invulformulier!$AR$6:$BE$10,9,FALSE) -> 13 | H20: =VLOOKUP($A20,Invulformulier!$AR$6:$BE$10,10,FALSE) -> 0.99508 | I20: =VLOOKUP($A20,Invulformulier!$AR$6:$BE$10,11,FALSE) -> 0 | J20: =VLOOKUP($A20,Invulformulier!$AR$6:$BE$10,12,FALSE) -> 1 | K20: =VLOOKUP($A20,Invulformulier!$AR$6:$BE$10,13,FALSE) -> 3 | L20: =VLOOKUP($A20,Invulformulier!$AR$6:$BE$10,14,FALSE) -> -5

Sheet GROEP-5
A1: Stand groep 5 | M1: SCORES BY: OnlineExcelCursus.NL
A2: =Invulformulier!AC24 -> Tijd | B2: =Invulformulier!AD24 -> 0 | C2: =Invulformulier!AF24 -> VELD 4 | F2: =Invulformulier!AT24 -> Uitslag | G2: =Invulformulier!AU24 -> 0 | H2: =Invulformulier!AV24 -> 0 | J2: =Invulformulier!AX24 -> Punten | K2: =Invulformulier!AY24 -> 0 | L2: =Invulformulier!AZ24 -> 0
A3: =Invulformulier!D38 -> 09:00:00 | B3: =Invulformulier!AD25 -> 00:00:00 | C3: =Invulformulier!G38 -> PE TEAM 1 | D3: =Invulformulier!AL25 -> -- | E3: =Invulformulier!N38 -> PE TEAM 2 | F3: =Invulformulier!U38 -> 2 | G3: =Invulformulier!AU25 -> -- | H3: =Invulformulier!W38 -> 3 | J3: =Invulformulier!Y38 -> 0 | L3: =Invulformulier!AA38 -> 3
A4: =Invulformulier!D39 -> 09:20:00 | B4: =Invulformulier!AD26 -> 00:00:00 | C4: =Invulformulier!G39 -> PE TEAM 3 | D4: =Invulformulier!AL26 -> -- | E4: =Invulformulier!N39 -> PE TEAM 4 | F4: =Invulformulier!U39 -> 3 | G4: =Invulformulier!AU26 -> -- | H4: =Invulformulier!W39 -> 5 | J4: =Invulformulier!Y39 -> 0 | L4: =Invulformulier!AA39 -> 3
A5: =Invulformulier!D40 -> 09:40:00 | B5: =Invulformulier!AD27 -> 00:00:00 | C5: =Invulformulier!G40 -> PE TEAM 5 | D5: =Invulformulier!AL27 -> -- | E5: =Invulformulier!N40 -> PE TEAM 1 | F5: =Invulformulier!U40 -> 6 | G5: =Invulformulier!AU27 -> -- | H5: =Invulformulier!W40 -> 5 | J5: =Invulformulier!Y40 -> 3 | L5: =Invulformulier!AA40 -> 0
A6: =Invulformulier!D41 -> 10:00:00 | B6: =Invulformulier!AD28 -> 00:00:00 | C6: =Invulformulier!G41 -> PE TEAM 2 | D6: =Invulformulier!AL28 -> -- | E6: =Invulformulier!N41 -> PE TEAM 3 | F6: =Invulformulier!U41 -> 0 | G6: =Invulformulier!AU28 -> -- | H6: =Invulformulier!W41 -> 2 | J6: =Invulformulier!Y41 -> 0 | L6: =Invulformulier!AA41 -> 3
A7: =Invulformulier!D42 -> 10:20:00 | B7: =Invulformulier!AD29 -> 00:00:00 | C7: =Invulformulier!G42 -> PE TEAM 5 | D7: =Invulformulier!AL29 -> -- | E7: =Invulformulier!N42 -> PE TEAM 4 | F7: =Invulformulier!U42 -> 1 | G7: =Invulformulier!AU29 -> -- | H7: =Invulformulier!W42 -> 1 | J7: =Invulformulier!Y42 -> 1 | L7: =Invulformulier!AA42 -> 1
A8: =Invulformulier!D43 -> 10:40:00 | B8: =Invulformulier!AD30 -> 00:00:00 | C8: =Invulformulier!G43 -> PE TEAM 1 | D8: =Invulformulier!AL30 -> -- | E8: =Invulformulier!N43 -> PE TEAM 3 | F8: =Invulformulier!U43 -> 2 | G8: =Invulformulier!AU30 -> -- | H8: =Invulformulier!W43 -> 1 | J8: =Invulformulier!Y43 -> 3 | L8: =Invulformulier!AA43 -> 0
A9: =Invulformulier!D44 -> 11:00:00 | B9: =Invulformulier!AD31 -> 00:00:00 | C9: =Invulformulier!G44 -> PE TEAM 2 | D9: =Invulformulier!AL31 -> -- | E9: =Invulformulier!N44 -> PE TEAM 5 | F9: =Invulformulier!U44 -> 4 | G9: =Invulformulier!AU31 -> -- | H9: =Invulformulier!W44 -> 4 | J9: =Invulformulier!Y44 -> 1 | L9: =Invulformulier!AA44 -> 1
A10: =Invulformulier!D45 -> 11:20:00 | B10: =Invulformulier!AD32 -> 00:00:00 | C10: =Invulformulier!G45 -> PE TEAM 4 | D10: =Invulformulier!AL32 -> -- | E10: =Invulformulier!N45 -> PE TEAM 1 | F10: =Invulformulier!U45 -> 5 | G10: =Invulformulier!AU32 -> -- | H10: =Invulformulier!W45 -> 3 | J10: =Invulformulier!Y45 -> 3 | L10: =Invulformulier!AA45 -> 0
A11: =Invulformulier!D46 -> 11:40:00 | B11: =Invulformulier!AD33 -> 00:00:00 | C11: =Invulformulier!G46 -> PE TEAM 3 | D11: =Invulformulier!AL33 -> -- | E11: =Invulformulier!N46 -> PE TEAM 5 | F11: =Invulformulier!U46 -> 3 | G11: =Invulformulier!AU33 -> -- | H11: =Invulformulier!W46 -> 2 | J11: =Invulformulier!Y46 -> 3 | L11: =Invulformulier!AA46 -> 0
A12: =Invulformulier!D47 -> 12:00:00 | B12: =Invulformulier!AD34 -> 00:00:00 | C12: =Invulformulier!G47 -> PE TEAM 4 | D12: =Invulformulier!AL34 -> -- | E12: =Invulformulier!N47 -> PE TEAM 2 | F12: =Invulformulier!U47 -> 0 | G12: =Invulformulier!AU34 -> -- | H12: =Invulformulier!W47 -> 0 | J12: =Invulformulier!Y47 -> 1 | L12: =Invulformulier!AA47 -> 1
A15: =Invulformulier!AR3 -> Stand | B15: =Invulformulier!BG5 -> Poule E | F15: Voor | G15: Tegen | H15: Punten | I15: =Invulformulier!BB3 -> Gewonnen | J15: =Invulformulier!BC3 -> Gelijk | K15: =Invulformulier!BD3 -> Verloren | L15: =Invulformulier!BE3 -> Saldo
A16: 1 | B16: =VLOOKUP(A16,Invulformulier!$BF$6:$BS$10,2,FALSE) -> PE TEAM 4 | F16: =VLOOKUP($A16,Invulformulier!$BF$6:$BS$10,8,FALSE) -> 11 | G16: =VLOOKUP($A16,Invulformulier!$BF$6:$BS$10,9,FALSE) -> 7 | H16: =VLOOKUP($A16,Invulformulier!$BF$6:$BS$10,10,FALSE) -> 8.00411 | I16: =VLOOKUP($A16,Invulformulier!$BF$6:$BS$10,11,FALSE) -> 2 | J16: =VLOOKUP($A16,Invulformulier!$BF$6:$BS$10,12,FALSE) -> 2 | K16: =VLOOKUP($A16,Invulformulier!$BF$6:$BS$10,13,FALSE) -> 0 | L16: =VLOOKUP($A16,Invulformulier!$BF$6:$BS$10,14,FALSE) -> 4
A17: 2 | B17: =VLOOKUP(A17,Invulformulier!$BF$6:$BS$10,2,FALSE) -> PE TEAM 3 | F17: =VLOOKUP($A17,Invulformulier!$BF$6:$BS$10,8,FALSE) -> 9 | G17: =VLOOKUP($A17,Invulformulier!$BF$6:$BS$10,9,FALSE) -> 9 | H17: =VLOOKUP($A17,Invulformulier!$BF$6:$BS$10,10,FALSE) -> 6.00009 | I17: =VLOOKUP($A17,Invulformulier!$BF$6:$BS$10,11,FALSE) -> 2 | J17: =VLOOKUP($A17,Invulformulier!$BF$6:$BS$10,12,FALSE) -> 0 | K17: =VLOOKUP($A17,Invulformulier!$BF$6:$BS$10,13,FALSE) -> 2 | L17: =VLOOKUP($A17,Invulformulier!$BF$6:$BS$10,14,FALSE) -> 0
A18: 3 | B18: =VLOOKUP(A18,Invulformulier!$BF$6:$BS$10,2,FALSE) -> PE TEAM 5 | F18: =VLOOKUP($A18,Invulformulier!$BF$6:$BS$10,8,FALSE) -> 13 | G18: =VLOOKUP($A18,Invulformulier!$BF$6:$BS$10,9,FALSE) -> 13 | H18: =VLOOKUP($A18,Invulformulier!$BF$6:$BS$10,10,FALSE) -> 5.00013 | I18: =VLOOKUP($A18,Invulformulier!$BF$6:$BS$10,11,FALSE) -> 1 | J18: =VLOOKUP($A18,Invulformulier!$BF$6:$BS$10,12,FALSE) -> 2 | K18: =VLOOKUP($A18,Invulformulier!$BF$6:$BS$10,13,FALSE) -> 1 | L18: =VLOOKUP($A18,Invulformulier!$BF$6:$BS$10,14,FALSE) -> 0
A19: 4 | B19: =VLOOKUP(A19,Invulformulier!$BF$6:$BS$10,2,FALSE) -> PE TEAM 2 | F19: =VLOOKUP($A19,Invulformulier!$BF$6:$BS$10,8,FALSE) -> 7 | G19: =VLOOKUP($A19,Invulformulier!$BF$6:$BS$10,9,FALSE) -> 8 | H19: =VLOOKUP($A19,Invulformulier!$BF$6:$BS$10,10,FALSE) -> 4.99907 | I19: =VLOOKUP($A19,Invulformulier!$BF$6:$BS$10,11,FALSE) -> 1 | J19: =VLOOKUP($A19,Invulformulier!$BF$6:$BS$10,12,FALSE) -> 2 | K19: =VLOOKUP($A19,Invulformulier!$BF$6:$BS$10,13,FALSE) -> 1 | L19: =VLOOKUP($A19,Invulformulier!$BF$6:$BS$10,14,FALSE) -> -1
A20: 5 | B20: =VLOOKUP(A20,Invulformulier!$BF$6:$BS$10,2,FALSE) -> PE TEAM 1 | F20: =VLOOKUP($A20,Invulformulier!$BF$6:$BS$10,8,FALSE) -> 12 | G20: =VLOOKUP($A20,Invulformulier!$BF$6:$BS$10,9,FALSE) -> 15 | H20: =VLOOKUP($A20,Invulformulier!$BF$6:$BS$10,10,FALSE) -> 2.99712 | I20: =VLOOKUP($A20,Invulformulier!$BF$6:$BS$10,11,FALSE) -> 1 | J20: =VLOOKUP($A20,Invulformulier!$BF$6:$BS$10,12,FALSE) -> 0 | K20: =VLOOKUP($A20,Invulformulier!$BF$6:$BS$10,13,FALSE) -> 3 | L20: =VLOOKUP($A20,Invulformulier!$BF$6:$BS$10,14,FALSE) -> -3

Sheet FINALE
A1: FINALE RONDE | M1: SCORES BY: OnlineExcelCursus.NL
A2: =Invulformulier!AC24 -> Tijd | B2: =Invulformulier!AD24 -> 0 | C2: =Invulformulier!AF24 -> VELD 4 | F2: =Invulformulier!AT24 -> Uitslag | G2: =Invulformulier!AU24 -> 0 | H2: =Invulformulier!AV24 -> 0 | J2: =Invulformulier!AX24 -> Punten | K2: =Invulformulier!AY24 -> 0 | L2: =Invulformulier!AZ24 -> 0
A3: =Invulformulier!AC25 -> 09:00:00 | B3: =Invulformulier!AD25 -> 00:00:00 | C3: =Invulformulier!AF38 -> PA TEAM 4 | D3: =Invulformulier!AL25 -> -- | E3: =Invulformulier!AM38 -> PB TEAM 2 | F3: =Invulformulier!AT38 -> 2 | G3: =Invulformulier!AU25 -> -- | H3: =Invulformulier!AV38 -> 5 | J3: =Invulformulier!AX38 -> 0 | L3: =Invulformulier!AZ38 -> 3
A4: =Invulformulier!AC26 -> 09:20:00 | B4: =Invulformulier!AD26 -> 00:00:00 | C4: =Invulformulier!AF39 -> PC TEAM 5 | D4: =Invulformulier!AL26 -> -- | E4: =Invulformulier!AM39 -> PD TEAM 3 | F4: =Invulformulier!AT39 -> 3 | G4: =Invulformulier!AU26 -> -- | H4: =Invulformulier!AV39 -> 2 | J4: =Invulformulier!AX39 -> 3 | L4: =Invulformulier!AZ39 -> 0
A5: =Invulformulier!AC27 -> 09:40:00 | B5: =Invulformulier!AD27 -> 00:00:00 | C5: =Invulformulier!AF40 -> PE TEAM 4 | D5: =Invulformulier!AL27 -> -- | E5: =Invulformulier!AM40 -> PA TEAM 4 | F5: =Invulformulier!AT40 -> 0 | G5: =Invulformulier!AU27 -> -- | H5: =Invulformulier!AV40 -> 0 | J5: =Invulformulier!AX40 -> 1 | L5: =Invulformulier!AZ40 -> 1
A6: =Invulformulier!AC28 -> 10:00:00 | B6: =Invulformulier!AD28 -> 00:00:00 | C6: =Invulformulier!AF41 -> PB TEAM 2 | D6: =Invulformulier!AL28 -> -- | E6: =Invulformulier!AM41 -> PC TEAM 5 | F6: =Invulformulier!AT41 -> 1 | G6: =Invulformulier!AU28 -> -- | H6: =Invulformulier!AV41 -> 2 | J6: =Invulformulier!AX41 -> 0 | L6: =Invulformulier!AZ41 -> 3
A7: =Invulformulier!AC29 -> 10:20:00 | B7: =Invulformulier!AD29 -> 00:00:00 | C7: =Invulformulier!AF42 -> PE TEAM 4 | D7: =Invulformulier!AL29 -> -- | E7: =Invulformulier!AM42 -> PD TEAM 3 | F7: =Invulformulier!AT42 -> 4 | G7: =Invulformulier!AU29 -> -- | H7: =Invulformulier!AV42 -> 0 | J7: =Invulformulier!AX42 -> 3 | L7: =Invulformulier!AZ42 -> 0
A8: =Invulformulier!AC30 -> 10:40:00 | B8: =Invulformulier!AD30 -> 00:00:00 | C8: =Invulformulier!AF43 -> PA TEAM 4 | D8: =Invulformulier!AL30 -> -- | E8: =Invulformulier!AM43 -> PC TEAM 5 | F8: =Invulformulier!AT43 -> 3 | G8: =Invulformulier!AU30 -> -- | H8: =Invulformulier!AV43 -> 5 | J8: =Invulformulier!AX43 -> 0 | L8: =Invulformulier!AZ43 -> 3
A9: =Invulformulier!AC31 -> 11:00:00 | B9: =Invulformulier!AD31 -> 00:00:00 | C9: =Invulformulier!AF44 -> PB TEAM 2 | D9: =Invulformulier!AL31 -> -- | E9: =Invulformulier!AM44 -> PE TEAM 4 | F9: =Invulformulier!AT44 -> 6 | G9: =Invulformulier!AU31 -> -- | H9: =Invulformulier!AV44 -> 5 | J9: =Invulformulier!AX44 -> 3 | L9: =Invulformulier!AZ44 -> 0
A10: =Invulformulier!AC32 -> 11:20:00 | B10: =Invulformulier!AD32 -> 00:00:00 | C10: =Invulformulier!AF45 -> PD TEAM 3 | D10: =Invulformulier!AL32 -> -- | E10: =Invulformulier!AM45 -> PA TEAM 4 | F10: =Invulformulier!AT45 -> 0 | G10: =Invulformulier!AU32 -> -- | H10: =Invulformulier!AV45 -> 3 | J10: =Invulformulier!AX45 -> 0 | L10: =Invulformulier!AZ45 -> 3
A11: =Invulformulier!AC33 -> 11:40:00 | B11: =Invulformulier!AD33 -> 00:00:00 | C11: =Invulformulier!AF46 -> PC TEAM 5 | D11: =Invulformulier!AL33 -> -- | E11: =Invulformulier!AM46 -> PE TEAM 4 | F11: =Invulformulier!AT46 -> 0 | G11: =Invulformulier!AU33 -> -- | H11: =Invulformulier!AV46 -> 2 | J11: =Invulformulier!AX46 -> 0 | L11: =Invulformulier!AZ46 -> 3
A12: =Invulformulier!AC34 -> 12:00:00 | B12: =Invulformulier!AD34 -> 00:00:00 | C12: =Invulformulier!AF47 -> PD TEAM 3 | D12: =Invulformulier!AL34 -> -- | E12: =Invulformulier!AM47 -> PB TEAM 2 | F12: =Invulformulier!AT47 -> 1 | G12: =Invulformulier!AU34 -> -- | H12: =Invulformulier!AV47 -> 1 | J12: =Invulformulier!AX47 -> 1 | L12: =Invulformulier!AZ47 -> 1
A15: =Invulformulier!AR3 -> Stand | B15: =Invulformulier!BV5 -> Finalepoule | F15: Voor | G15: Tegen | H15: Punten | I15: =Invulformulier!BB3 -> Gewonnen | J15: =Invulformulier!BC3 -> Gelijk | K15: =Invulformulier!BD3 -> Verloren | L15: =Invulformulier!BE3 -> Saldo
A16: 1 | B16: =VLOOKUP(A16,Invulformulier!$BU$6:$CH$10,2,FALSE) -> PC TEAM 5 | F16: =VLOOKUP($A16,Invulformulier!$BU$6:$CH$10,8,FALSE) -> 10 | G16: =VLOOKUP($A16,Invulformulier!$BU$6:$CH$10,9,FALSE) -> 8 | H16: =VLOOKUP($A16,Invulformulier!$BU$6:$CH$10,10,FALSE) -> 9.0021 | I16: =VLOOKUP($A16,Invulformulier!$BU$6:$CH$10,11,FALSE) -> 3 | J16: =VLOOKUP($A16,Invulformulier!$BU$6:$CH$10,12,FALSE) -> 0 | K16: =VLOOKUP($A16,Invulformulier!$BU$6:$CH$10,13,FALSE) -> 1 | L16: =VLOOKUP($A16,Invulformulier!$BU$6:$CH$10,14,FALSE) -> 2
A17: 2 | B17: =VLOOKUP(A17,Invulformulier!$BU$6:$CH$10,2,FALSE) -> PE TEAM 4 | F17: =VLOOKUP($A17,Invulformulier!$BU$6:$CH$10,8,FALSE) -> 11 | G17: =VLOOKUP($A17,Invulformulier!$BU$6:$CH$10,9,FALSE) -> 6 | H17: =VLOOKUP($A17,Invulformulier!$BU$6:$CH$10,10,FALSE) -> 7.00511 | I17: =VLOOKUP($A17,Invulformulier!$BU$6:$CH$10,11,FALSE) -> 2 | J17: =VLOOKUP($A17,Invulformulier!$BU$6:$CH$10,12,FALSE) -> 1 | K17: =VLOOKUP($A17,Invulformulier!$BU$6:$CH$10,13,FALSE) -> 1 | L17: =VLOOKUP($A17,Invulformulier!$BU$6:$CH$10,14,FALSE) -> 5
A18: 3 | B18: =VLOOKUP(A18,Invulformulier!$BU$6:$CH$10,2,FALSE) -> PB TEAM 2 | F18: =VLOOKUP($A18,Invulformulier!$BU$6:$CH$10,8,FALSE) -> 13 | G18: =VLOOKUP($A18,Invulformulier!$BU$6:$CH$10,9,FALSE) -> 10 | H18: =VLOOKUP($A18,Invulformulier!$BU$6:$CH$10,10,FALSE) -> 7.00313 | I18: =VLOOKUP($A18,Invulformulier!$BU$6:$CH$10,11,FALSE) -> 2 | J18: =VLOOKUP($A18,Invulformulier!$BU$6:$CH$10,12,FALSE) -> 1 | K18: =VLOOKUP($A18,Invulformulier!$BU$6:$CH$10,13,FALSE) -> 1 | L18: =VLOOKUP($A18,Invulformulier!$BU$6:$CH$10,14,FALSE) -> 3
A19: 4 | B19: =VLOOKUP(A19,Invulformulier!$BU$6:$CH$10,2,FALSE) -> PA TEAM 4 | F19: =VLOOKUP($A19,Invulformulier!$BU$6:$CH$10,8,FALSE) -> 8 | G19: =VLOOKUP($A19,Invulformulier!$BU$6:$CH$10,9,FALSE) -> 10 | H19: =VLOOKUP($A19,Invulformulier!$BU$6:$CH$10,10,FALSE) -> 3.99808 | I19: =VLOOKUP($A19,Invulformulier!$BU$6:$CH$10,11,FALSE) -> 1 | J19: =VLOOKUP($A19,Invulformulier!$BU$6:$CH$10,12,FALSE) -> 1 | K19: =VLOOKUP($A19,Invulformulier!$BU$6:$CH$10,13,FALSE) -> 2 | L19: =VLOOKUP($A19,Invulformulier!$BU$6:$CH$10,14,FALSE) -> -2
A20: 5 | B20: =VLOOKUP(A20,Invulformulier!$BU$6:$CH$10,2,FALSE) -> PD TEAM 3 | F20: =VLOOKUP($A20,Invulformulier!$BU$6:$CH$10,8,FALSE) -> 3 | G20: =VLOOKUP($A20,Invulformulier!$BU$6:$CH$10,9,FALSE) -> 11 | H20: =VLOOKUP($A20,Invulformulier!$BU$6:$CH$10,10,FALSE) -> 0.99203 | I20: =VLOOKUP($A20,Invulformulier!$BU$6:$CH$10,11,FALSE) -> 0 | J20: =VLOOKUP($A20,Invulformulier!$BU$6:$CH$10,12,FALSE) -> 1 | K20: =VLOOKUP($A20,Invulformulier!$BU$6:$CH$10,13,FALSE) -> 3 | L20: =VLOOKUP($A20,Invulformulier!$BU$6:$CH$10,14,FALSE) -> -8

Sheet Blad1
